Workbook

Sheet Cover Page
D1: Add company logo
N2: Version 22.2
B8: Add photo
N13: Notes:
N14: This template may require adjustments by individual operators to meet specific reporting requirements as defined in the site Permit(s)
B29: Annual Performance Report 2023
B31: Permit EPR/JP3135DK
B33: Kemsley Generating Station
B35: K3 CHP
B37: enfinium K3 CHP Operations Limited
B39: Year: | C39: 2023
B41: Address: | C41: Barge Way, Sittingbourne, Kent, ME10 2FP
B43: Tel: | C43: 01795 685 740
B45: Email: | C45: fiona.gormley@enfinium.co.uk
B47: Prepared by: | C47: Fiona Gormley | F47: Position: | G47: Quality Manager
B49: Approved by: | C49: Paul McMullen | F49: Position: | G49: Plant Manager
B51: Version: | C51: 1
B53: Issue Date: | C53: 2023-01-25

Sheet Contents
A1: =+'Cover Page'!$B$29 -> Annual Performance Report 2023 | E1: =+'Cover Page'!$B$33 -> Kemsley Generating Station
A3: Contents | K3: Notes:
A4: Section | B4: Subject | H4: Page | K4: Section references and Page nos. to be inserted
A5: 1 | B5: Facility Information | H5: 3 | K5: Sections and Subjects may require adjustment by individual operators to meet specific reporting requirements as defined in the sites Permit(s)
A6: 2 | B6: Operational Summary | H6: 4
A7: 3 | B7: Operational Data | H7: 5
A8: 4 | B8: Performance Form 1 | H8: 6
A9: 5 | B9: Energy Form 1 | H9: 7
A10: 6 | B10: Permit Compliance | H10: 8
A11: 7 | B11: Improvements | H11: 9
A12: 8 | B12: Public Liasion | H12: 10
A13: 9 | B13: Residue Quality - Optional | H13: 11
A14: 10 | B14: Carbon Dioxide Emissions | H14: 12
A15: 11 | B15: Emissions to Water | H15: 13
A16: 12 | B16: Emissions to Air (periodically monitored) | H16: 14
A17: 13 | B17: Emissions to Air (continuously monitored) | H17: 15
A18: 14 | B18: Hydrogen Chloride emissions | H18: 16
A19: 15 | B19: Sulphur Dioxdie emsissions | H19: 17
A20: 16 | B20: Oxides of Notrigen emissions | H20: 18
A21: 17 | B21: Total Organic Carbon emissions | H21: 19
A22: 18 | B22: Particulate Matter emissions | H22: 20
A23: 19 | B23: Carbon Monoxide emissions | H23: 21
A24: 20 | B24: Ammonia emissions | H24: 22
A27: Version Control
A28: Section | B28: Information | H28: Date
A29: All | B29: Draft Report | H29: 2024-01-12
A30: All | B30: Final Report - Version 1 | H30: 2024-01-25
A35: Distribution
A36: Copy | B36: Name, Role | H36: No.
B37: InstallationsKSLES@environment-agency.gov.uk - Regulator (EA)
B38: John.Tollervey@environment-agency.gov.uk - Senior Technical Specialist (EA)
B39: Paul.McMullen@enfinium.co.uk - Plant Manager
B40: Fiona.Gormley@enfinium.co.uk - Quality Manager
B41: Luke.Clothier@enfinium.co.uk - Environmental Officer
B42: David.Pailing@enfinium.co.uk - Operations Manager
A46: This report is required under the Industrial Emissions Directive’s Article 55(2) requirements on reporting and public information on waste incineration plants and co-incineration plants, which require the operator to produce an annual report on the functioning and monitoring of the plant and make it available to the public.

Sheet Facility Info
A1: =+'Cover Page'!$B$29 -> Annual Performance Report 2023 | E1: =+'Cover Page'!$B$33 -> Kemsley Generating Station
A3: Plant Description and Design | K3: Notes:
A4: The Kemsley Energy Recovery Facility (ERF) forms part of the Kemsley Paper Mill installation comprising of the DS Smith Kemsley Paper Mill and the E.On combined heat and power facility. It is located at grid reference 592170,166640 to the east of Kemsley, 3 km north of Sittingbourne and 2.5 km south east of Iwade. The installation consists of two combustion lines and processes up to 657,000 tonnes of residual waste per annum (tpa); primarily commercial and industrial (C&I) waste and residual Municipal Solid Waste (MSW) which is collected and delivered by external waste management companies. Energy is recovered in the process by utilising the steam generated in the boiler to drive a turbine to generate electricity. Approximately 45MW of electricity can be exported to grid per hour and 55MWth per hour of steam can be supplied to neighbouring businesses (the paper mill when it is running at capacity). Recyclable materials in the form of incinerator bottom ash (IBA) and metals from the IBA are also recovered from the process. The existing permit (Permit number EPR/JP3135DK) allows the facility to accept municipal, industrial and commercial waste and undertake the following activities: • Receipt and storage of waste pending processing; • Electricity and steam generation; and • Disposal of waste arising (incinerator bottom ash (IBA) and air pollution control residues (APCR). | K4: Include summary of plant design, design capacity, no. of combustion lines, electrical and heat capacity and any other general information that describes the facility, its location and purpose
A19: Summary of Operational Processes and Procedures
A20: Municipal solid wastes and commercial wastes accepted at the installation are delivered in covered vehicles or containers. All vehicles delivering the waste are weighed in at the weighbridge before entering the Tipping Hall and being allowed to discharge waste. The residual waste is discharged onto the tipping hall floor and pushed into the bunker using mobile plant and is utilised as feedstock for the ERF. The waste in the bunker is mixed with a crane to create a homogenous feedstock and to prevent anaerobic conditions and hence odour. Waste is loaded into the incinerator, using the crane, via the feed hopper. The facility processes waste using air cooled, moving grate technology. The grate is split into 5 zones; zone 1 is the drying zone; 2-3 are the main combustion zones and 4-5 are the burn out zones. Primary and secondary air supply is controlled to ensure good combustion conditions, additional support in combustion is provided through tertiary air injection. A temperature of at least 850°C for at least 2 seconds (T2S) is achieved. After the waste has been burned the remaining unburnt material, called incinerator bottom ash (IBA) is quenched in water. The bottom ash is transported by conveyor to an indoor storage area. The IBA is stored here until it is sent off site to a suitably licensed waste treatment facility for re-processing/recovery. The flue gas is treated within the dry Flue Gas Treatment (FGT) system to reduce the level of pollutants emitted and to comply with the requirements of the Industrial Emissions Directive (IED) and the Environmental Permit. Oxides of Nitrogen (NOx) are abated using dry urea; acid gases such as Hydrogen Chloride (HCl) and Sulphur Dioxins (SO2) are abated using hydrated lime injection. For dioxins and mercury, Powdered Activated Carbon (PAC) abatement is used. Fabric bag filters are utilised for the abatement of particulate matter and also to collect the by-products from both reactions known as Air Pollution Control Residue (APCR) which is transferred to a silo then to a tanker (or sealed bags are sometimes used) for removal from the facility and disposal at a suitably licenced premises. Following clean up, the flue gas is emitted to air through the 90m high stack. The flue gases entering the stack are continuously monitored for HCl, SO2, TOC, CO, NOx, NH3 and Particulates against limits as laid down in the Environmental Permit. The heat from the combustion process is used to turn water into high-pressure steam, that steam then powers a turbine to generate electricity for internal use and for export to the National Grid. The facility also has combined heat and power (CHP) capability and supplies the adjacent DS Smith paper mill with steam. Spent steam from the turbine is converted back to condensate in an air-cooled condenser, which feeds back into the condensate tank. The facility is designed to export approximately 45MW of electricity (permitted electrical generation capacity of 74MWe) to the grid, and 55 MWth of steam (permitted heat export capacity of 204 MWth) to the paper mill when it is running at capacity. The facility is certified to ISO 45001, 9001 and 14001 and operates an accredited Management System housing the processes and procedures to be followed. The facility has procedures in place including emergency procedures, operating instructions, method statements and risk assessments. All health, safety and environmental incidents, events and resulting investigations and actions are managed within the companies EHS reporting system. The facility has a Computer Maintenance Management System (CMMS) in place housing all maintenance tasks and defect reporting. Planned outages take place at specified intervals to allow for boiler cleaning, statutory and essential maintenance to maintain plant reliability and efficiency. | K20: Include summary of key processes and procedures such as (but not limited to); waste reception, control rooms, grate, bed and boiler, energy & heat generation, cooling systems, residue management, emission controls, health and safety systems, maintenance

Sheet Operational Data
A1: =+'Cover Page'!$B$29 -> Annual Performance Report 2023 | E1: =+'Cover Page'!$B$33 -> Kemsley Generating Station
A3: Operational Data | K3: Notes:
A4: Plant Size | B4: 657000 | D4: tonnes pa | E4: 55 | F4: MWth | G4: 45 | H4: MWe | K4: ^ - RDF to include SRF
A5: No. of combustion lines | B5: 2 | D5: No. of Turbines: | F5: 1 | K5: ^^ - CHP plants only
K6: 2020 updates include; heat in MWh, water in Litres, NCV in MJ/kg
A7: Waste types received | B7: Unit | C7: Q1** | D7: Q2 | E7: Q3 | F7: Q4 | G7: Year Total | H7: %
A8: Household / Local Authority | B8: tonnes | C8: 68700.3 | D8: 79255.24 | E8: 69351.7 | F8: 68572.573 | G8: =SUM(C8:F8) -> 285879.813 | H8: =IF(G8>0,G8/$G$18,"-") -> 0.5076837591 | K8: Availabiity Definition: 'the availability of a line is to be calculated by the number of hours the line reported Continuously Monitored emission levels to the Regulator through the calendar year divided by the total number of hours in that year. The overall plant availability is calculated as the Mean of all lines in the plant. For clarity this includes periods of Other Than Normal Operating Conditions (OTNOC) and abnormal operation.' Rationale: The primary function of an Energy from Waste facility is the disposal of waste. It follows therefore that the availability of a plant is determined by the period of time a facility spends undertaking this activity.
A9: Commercial & Industrial | C9: 23930.04 | D9: 25679.94 | E9: 20810.62 | F9: 23578.96 | G9: =SUM(C9:F9) -> 93999.56 | H9: 0.1669304645
A10: Hazardous | C10: 0 | D10: 0 | E10: 0 | F10: 0 | G10: 0 | H10: -
A11: Clinical | C11: 0 | D11: 0 | E11: 0 | F11: 0 | G11: 0 | H11: -
A12: Waste wood (biomass) | C12: 0 | D12: 0 | E12: 0 | F12: 0 | G12: 0 | H12: -
A13: Refuse Derived Fuel ^ - H'hold/LA | C13: 0 | D13: 0 | E13: 0 | F13: 0 | G13: =SUM(C13:F13) -> 0 | H13: -
A14: Refuse Derived Fuel ^^ - C&I | C14: 47749.5 | D14: 46587.99 | E14: 42294.46 | F14: 46594.76 | G14: 183226.71 | H14: 0.3253857764
A15: Other [Please specify] | C15: 0 | D15: 0 | E15: 0 | F15: 0 | G15: 0 | H15: -
A16: Other [Please specify] | C16: 0 | D16: 0 | E16: 0 | F16: 0
A17: Other [Please specify] | C17: 0 | D17: 0 | E17: 0 | F17: 0
A18: Total waste received | C18: =SUM(C8:C17) -> 140379.84 | D18: =SUM(D8:D17) -> 151523.17 | E18: =SUM(E8:E17) -> 132456.78 | F18: =SUM(F8:F17) -> 138746.293 | G18: =SUM(G8:G17) -> 563106.083 | H18: 1
A19: Rejected Waste | C19: 0 | D19: 0 | E19: 0 | F19: 0 | G19: =SUM(C19:F19) -> 0 | H19: =IF(G19>0,G19/$G$18,"-") -> -
A20: Unprocessed waste transferred out | C20: 0 | D20: 0 | E20: 0 | F20: 0 | G20: =SUM(C20:F20) -> 0 | H20: =IF(G20>0,G20/$G$18,"-") -> -
A21: Total waste combusted* | C21: 140862 | D21: 152054 | E21: 129802 | F21: 143204 | G21: =SUM(C21:F21) -> 565922 | H21: =IF(G21>0,G21/$G$18,"-") -> 1.005000687
A22: *Total waste combusted = Total waste processed from midnight readings derived from crane weight data.
A23: **24.3 tonnes more 200301 and 48.5 tonnes less 191210 than reported in Q1 returns due to a ticket correction.
A25: Energy Useage / Export | B25: Unit | C25: Q1 | D25: Q2 | E25: Q3 | F25: Q4 | G25: Year Total | H25: KWh/te
A26: Power Generated | B26: MWh | C26: 103392 | D26: 103638 | E26: 89640 | F26: 95815 | G26: =SUM(C26:F26) -> 392485 | H26: =IF(G26>0,G26*1000/$G$21,"-") -> 693.5319708
A27: Power Exported | C27: 92239 | D27: 91903 | E27: 78116 | F27: 84694 | G27: =SUM(C27:F27) -> 346952 | H27: =IF(G27>0,G27*1000/$G$21,"-") -> 613.0738865
A28: Power Used on site | C28: =C26-C27+C29 -> 11225 | D28: =D26-D27+D29 -> 12478 | E28: =E26-E27+E29 -> 11897 | F28: =F26-F27+F29 -> 11682 | G28: =SUM(C28:F28) -> 47282 | H28: =IF(G28>0,G28*1000/$G$21,"-") -> 83.54861624
A29: Power Imported | C29: 72 | D29: 743 | E29: 373 | F29: 561 | G29: =SUM(C29:F29) -> 1749 | H29: =IF(G29>0,G29*1000/$G$21,"-") -> 3.090531911
A30: Parasitic Load | B30: % | C30: =IF(C26>0,1-C27/(C26+C29),"-") -> 0.1084918426 | D30: =IF(D26>0,1-D27/(D26+D29),"-") -> 0.1195428287 | E30: =IF(E26>0,1-E27/(E26+E29),"-") -> 0.1321697977 | F30: =IF(F26>0,1-F27/(F26+F29),"-") -> 0.1212127501 | G30: =IF(G26>0,1-G27/(G26+G29),"-") -> 0.1199338464 | H30: -
A31: Thermal Energy Produced ** | B31: MWh | C31: 396343 | D31: 431836 | E31: 363280 | F31: 390706 | G31: =SUM(C31:F31) -> 1582165 | H31: =IF(G31>0,G31*1000/$G$21,"-") -> 2795.7298
A32: Thermal Energy Exported ** | C32: 77498 | D32: 93460 | E32: 98390 | F32: 93594 | G32: =SUM(C32:F32) -> 362942 | H32: =IF(G32>0,G32*1000/$G$21,"-") -> 641.3286637
A33: R1 value (if applicable) | C33: 0.91 | G33: - | H33: -
A35: Waste Disposal & Recovery | B35: Unit | C35: Q1 | D35: Q2 | E35: Q3 | F35: Q4 | G35: Year Total | H35: % inputs
A36: APC Residues - produced | B36: tonnes | C36: 3842 | D36: 3582 | E36: 3347 | F36: 3713 | G36: =SUM(C36:F36) -> 14484 | H36: =IF(G36>0,G36/$G$21,"-") -> 0.02559363304
A37: IBA - produced | C37: 29933 | D37: 32451 | E37: 28943 | F37: 28531 | G37: 119858 | H37: 0.2117924378
A38: Metals recycling | C38: 391.34 | D38: 318.06 | E38: 252.76 | F38: 263.732 | G38: 1225.892 | H38: 0.002166185446
A39: Other | C39: 0 | D39: 0 | E39: 0 | F39: 0 | G39: 0 | H39: -
A40: Other | C40: 0 | D40: 0 | E40: 0 | F40: 0 | G40: 0 | H40: -
A41: Other | C41: 0 | D41: 0 | E41: 0 | F41: 0 | G41: 0 | H41: -
A43: Raw Material Usage | B43: Unit | C43: Q1 | D43: Q2 | E43: Q3 | F43: Q4 | G43: Year Total | H43: kg or Ltr /te
A44: Mains Water | B44: ltrs | C44: 3248000 | D44: 3455000 | E44: 2554000 | F44: 1713000 | G44: =SUM(C44:F44) -> 10970000 | H44: =IF(G44>0,G44/$G$21,"-") -> 19.38429678
A45: Other Water | B45: ltrs | C45: 0 | D45: 0 | E45: 0 | G45: 0 | H45: =IF(G45>0,G45/$G$21,"-") -> -
A46: Ammonia | B46: kgs | C46: 0 | D46: 0 | E46: 0 | G46: 0 | H46: -
A47: Urea | B47: kgs | C47: 93599 | D47: 122665 | E47: 100225 | F47: 123843 | G47: =SUM(C47:F47) -> 440332 | H47: 0.7780789579
A48: Activated Carbon | B48: kgs | C48: 39877 | D48: 43855 | E48: 38587 | F48: 40429 | G48: 162748 | H48: 0.2875802672
A49: Lime / hydrated lime | B49: kgs | C49: 1708000 | D49: 1401000 | E49: 1323000 | F49: 1432000 | G49: 5864000 | H49: 10.36185199
A50: Fuel oil | B50: ltrs | C50: 118155 | D50: 237673 | E50: 324845 | F50: 397688 | G50: 1078361 | H50: 1.905494043
A51: Gas | B51: cf | C51: 0 | D51: 0 | E51: 0 | F51: 0 | G51: 0
A52: Other | C52: 0 | D52: 0 | E52: 0 | F52: 0 | G52: 0
A54: Summary | B54: Line/Unit | C54: Q1 | D54: Q2 | E54: Q3 | F54: Q4 | G54: Year Total | J54: Hrs in year
A55: Availability of waste combustion by line, hrs | B55: 1 | C55: 1608 | D55: 2066 | E55: 1612 | F55: 1863 | G55: =SUM(C55:F55) -> 7149 | H55: - | J55: 8760
B56: 2 | C56: 2151.1 | D56: 2037.8 | E56: 1894.3 | F56: 1807.2 | G56: 7890.4 | H56: -
A57: Overall Availability, mean avg. of all lines, hrs, hrs | B57: - | C57: =AVERAGE(C55:C56) -> 1879.55 | D57: =AVERAGE(D55:D56) -> 2051.9 | E57: =AVERAGE(E55:E56) -> 1753.15 | F57: =AVERAGE(F55:F56) -> 1835.1 | G57: =AVERAGE(G55:G56) -> 7519.7 | H57: 0.851
A58: Hours of turbine operations, hrs | B58: 1 | C58: 2139 | D58: 2060 | E58: 1973 | F58: 1963 | G58: =SUM(C58:F58) -> 8135 | H58: 0.929
A59: Hours of heat / steam export** | B59: - | C59: - | D59: - | E59: - | F59: - | G59: 7995.5 | H59: -
A60: Net Calorific Value of waste* | B60: MJ/kg | C60: 10172 | D60: 10200 | E60: 10381 | F60: 9947 | G60: 10067 | H60: -
A61: Abnormal Events | B61: qty. | C61: 0 | D61: 0 | E61: 0 | F61: 0 | G61: 0 | H61: =IF(G61>0,"yes","no") -> no
A62: Abnormal operation | B62: hours | C62: 0 | D62: 0 | E62: 0 | F62: 0 | G62: 0 | H62: =+(G62)/J55 -> 0
A63: Permit Breaches | B63: qty. | C63: 0 | D63: - | E63: 0 | F63: 0 | G63: 0 | H63: =IF(G63>0,"yes","no") -> no
A64: ** this is hours per line, the total for both lines = 15,991 hours

Sheet Operational Summary
A1: =+'Cover Page'!$B$29 -> Annual Performance Report 2023 | E1: =+'Cover Page'!$B$33 -> Kemsley Generating Station
A3: Summary of Plant Operations and Maintenance during the reporting year | K3: Notes:
A4: The plant performance (boiler and turbine availability) for 2023 was good and comparable with 2022 with a slightly increased boiler availability. The thermal energy produced and steam energy delivered to D.S. Smith remains in line with expectations and previous years. A very slight reduction in the calorific value of the waste was observed and there was an increase in throughput in 2023 compared to 2022. The facility continues to maintain safe and environmentally compliant operations in accordance with the management system and legal requirements. Detailed PPM (planned preventative maintenance) processes, in line with equipment manufacturers recommendations, are in place and managed within the companies CMMS (Computerised Maintenance Management System). Two planned maintenance outages were completed successfully in 2023. In addition to the routine maintenance tasks and statutory inspections, boiler tubes were exchanged and coated to aid in the reduction of unplanned downtime due to tube leaks and improve plant availability. Actilab screws were replaced with an improved, harder wearing material to improve reliability. Legacy defects continue to be managed from the construction phase. | K4: Include summary of key operational and/or maintenance activity undertaken in the year, such as any major component upgrades and/or replacements
A28: Summary of Residue Handling for the reporting year
A29: The residues produced from the incineration process include Incinerator Bottom Ash (IBA) and Air Pollution Control Residues (APCR). The facility has procedures in place as part of the management system for the handling of such residues. The IBA is sampled and sent to an approved testing laboratory twice a month and for a full hazard analysis once per quarter in accordance with the Environmental Permit. All hazard analysis results have demonstrated the IBA to be non-hazardous. IBA is sent for re-processing at Fortis IBA (Swale), a fully licenced site, where the metals are recovered and the IBA is used to produce construction materials. APCR is sampled and tested by the same approved laboratory once per quarter. Due to the inevitable hazardous nature of the APCR it is sent to Augean (Peterborough) where it is treated and landfilled. enfinium continue to investigate opportunities for recycling of this material. All testing of residues in carried out in accordance with the Industrial Emissions Directive (IED) and the Environmental Services Association (ESA) sampling and testing protocol. | K29: Include in here a summary of residue handling regimes and destinations

Sheet Perf. Form 1
A1: =+'Cover Page'!C39 -> 2023 | B1: Annual Reporting Performance Form 1
A3: =+'Cover Page'!B31 -> Permit EPR/JP3135DK | F3: Operator: | G3: enfinium K3 CHP Operations Limited
A4: Facility: | B4: =+'Cover Page'!B33:I33 -> Kemsley Generating Station | F4: Form: | G4: Performance 1
A6: Reporting Period from: | D6: 01st Jan 2022 | F6: to: | G6: 31st Dec 2022
A8: =+A1 -> 2023 | B8: Annual Reporting of Waste Disposal and Recovery
A9: Waste Description | C9: Disposal Route(s) | E9: Disposal Tonnes | G9: Recovery Tonnes | I9: % / tonne of waste incinerated
A10: 1) Hazardous Wastes
A11: APC Residues - 19 01 07* | C11: D09 | E11: 14266.7 | G11: 0 | I11: =IF((E11+G11)>0,(E11+G11)/'Operational Data'!$G$21, "-") -> 0.02520965787
A12: IBA | C12: - | E12: 0 | G12: 0 | I12: =IF((E12+G12)>0,(E12+G12)/'Operational Data'!$G$21, "-") -> -
A13: Total Hazardous Waste | E13: =SUM(E11:F12) -> 14266.7 | G13: =SUM(G11:H12) -> 0 | I13: =IF((E13+G13)>0,(E13+G13)/'Operational Data'!$G$21, "-") -> 0.02520965787
A15: 2) Non-Hazardous Wastes
A16: IBA - 19 01 12 | C16: R11 | E16: 0 | G16: 120166 | I16: =IF((E16+G16)>0,(E16+G16)/'Operational Data'!$G$21, "-") -> 0.2123366824
A17: 19 12 02 (Ferrous Metal) | C17: R04 | E17: 0 | G17: 1225.89 | I17: =IF((E17+G17)>0,(E17+G17)/'Operational Data'!$G$21, "-") -> 0.002166181912
A18: 16 10 02 (Aq. Liquid) | C18: D09 | E18: 2254.7 | G18: 0 | I18: =IF((E18+G18)>0,(E18+G18)/'Operational Data'!$G$21, "-") -> 0.003984117953
A19: 15 01 06 (Mixed Packaging) | C19: R05 | E19: 0 | G19: 0.288 | I19: =IF((E19+G19)>0,(E19+G19)/'Operational Data'!$G$21, "-") -> 5.089040539e-07
A20: 19 12 12 (Other Waste, oversize) | C20: R04 | E20: 0 | G20: 414.68 | I20: =IF((E20+G20)>0,(E20+G20)/'Operational Data'!$G$21, "-") -> 0.0007327511565
A21: 20 01 38 (Wood) | C21: R03 | E21: 0 | G21: 7.36 | I21: =IF((E21+G21)>0,(E21+G21)/'Operational Data'!$G$21, "-") -> 1.300532582e-05
A22: 20 03 01 (Municipal) | C22: R01 | E22: 0 | G22: 27.371 | I22: =IF((E22+G22)>0,(E22+G22)/'Operational Data'!$G$21, "-") -> 4.836532243e-05
A23: Total Non-Hazardous Waste | E23: =SUM(E16:F22) -> 2254.7 | G23: =SUM(G16:H22) -> 121841.589 | I23: =IF((E23+G23)>0,(E23+G23)/'Operational Data'!$G$21, "-") -> 0.219281613
A24: TOTAL WASTE | E24: =+E23+E13 -> 16521.4 | G24: =+G23+G13 -> 121841.589 | I24: =IF((E24+G24)>0,(E24+G24)/'Operational Data'!$G$21, "-") -> 0.2444912709
A26: Operator’s comments :
A27: 16 10 02 aquouse liquid tonnage increased compared to waste return due to corrected tickets in Q1-3; process in place to rectifiy and eliminate future discrepencies.
A31: =+A1 -> 2023 | B31: Annual Reporting of Water and Other Raw Material Usage
A32: Raw Material | E32: Usage | G32: Unit | H32: Specific Usage | J32: Unit
A33: Mains Water | E33: =+'Operational Data'!G44 -> 10970000 | G33: m3 | H33: =IF(E33>0,E33/'Operational Data'!$G$21,"-") -> 19.38429678 | J33: m3/te
A34: Total Water | E34: =+'Operational Data'!G45+'Operational Data'!G44 -> 10970000 | G34: m3 | H34: =IF(E34>0,E34/'Operational Data'!$G$21,"-") -> 19.38429678 | J34: m3/te
A35: Urea / Ammonia | E35: =+'Operational Data'!G47 -> 440332 | G35: kg | H35: =IF(E35>0,E35/'Operational Data'!$G$21,"-") -> 0.7780789579 | J35: kg/te
A36: Activated Carbon | E36: =+'Operational Data'!G48 -> 162748 | G36: kg | H36: =IF(E36>0,E36/'Operational Data'!$G$21,"-") -> 0.2875802672 | J36: kg/te
A37: Lime / hydrated lime / Sodium Bicarb. | E37: =+'Operational Data'!G49 -> 5864000 | G37: kg | H37: =IF(E37>0,E37/'Operational Data'!$G$21,"-") -> 10.36185199 | J37: kg/te
A39: Operator’s comments :
A40: -
A43: =+A31 -> 2023 | B43: Annual Reporting of other performance indicators
A44: Parameter | C44: Results by Line
C45: A1 | D45: A2 | E45: A3 | F45: A4 | G45: A5 | I45: Turbine 1 | J45: Turbine 2
A46: Operating hours for the year, hours | C46: 7147 | D46: 7890 | E46: - | F46: - | G46: - | H46: - | I46: 8140 | J46: -
A47: Number of periods of abnormal operation, qty. | C47: 0 | D47: 0 | E47: - | F47: - | G47: - | H47: - | I47: 0 | J47: -
A48: Cumulative hours of abnormal operation for this year, hours | C48: 0 | D48: 0 | E48: - | F48: - | G48: - | H48: - | I48: 0 | J48: -
A50: Operator’s comments :
A51: K3 facility operates 2 lines (2 boilers and 2 emission points) with 1 common turbine.
A54: Signed: | G54: Date:

Sheet Energy Form 1
A1: =+'Cover Page'!C39 -> 2023 | B1: Annual Reporting of Energy Usage/Export
A3: =+'Cover Page'!B31 -> Permit EPR/JP3135DK | F3: Operator: | G3: enfinium K3 CHP Operations Limited
A4: Facility: | B4: =+'Cover Page'!B33:I33 -> Kemsley Generating Station | F4: Form: | G4: Energy 1
A6: Reporting Period from: | D6: =+'Perf. Form 1'!D6:E6 -> 01st Jan 2022 | F6: to: | G6: =+'Perf. Form 1'!G6:H6 -> 31st Dec 2022
A8: Energy Source | D8: Energy Usage | F8: Unit | G8: Specific Useage (KWh/tonne incinerated
A9: Electricity Produced | D9: =+'Operational Data'!G26 -> 392485 | F9: MWh | G9: =+'Operational Data'!H26 -> 693.5319708
A10: Electricity Imported | D10: =+'Operational Data'!G29 -> 1749 | F10: MWh | G10: =+'Operational Data'!H29 -> 3.090531911
A11: Electricity Exported | D11: =+'Operational Data'!G27 -> 346952 | F11: MWh | G11: =+'Operational Data'!H27 -> 613.0738865
A12: Gas Oil | D12: 809.47 | F12: tonnes | G12: -
A13: Steam/hot water exported | D13: =+'Operational Data'!G32 -> 362942 | F13: GWh | G13: =+'Operational Data'!H32 -> 641.3286637
A17: Operator’s comments :
A18: Gas (fuel) oil used is for plant only. Fuel oil density used 0.82kg/l.
A28: Signed: | G28: Date:

Sheet Permit Compliance
A1: =+'Cover Page'!$B$29 -> Annual Performance Report 2023 | E1: =+'Cover Page'!$B$33 -> Kemsley Generating Station
A3: Summary of Permit Compliance
A4: Compliance with permit limits for continuously monitored pollutants
A6: The plant met its emission limits as shown in the table below:
A7: Substance | C7: Percentage time compliant during operation | L7: Notes:
C8: Half-hourly limit | F8: Daily limit | L8: Report to 2 decimal places, i.e. xx.xx% Please provide a brief summary of each notification or non-compliance in the table (rather than just referring to notifications that were sent to the Regulator).
A9: Particulates | C9: 1 | F9: 1
A10: Oxides of nitrogen | C10: 1 | F10: 1
A11: Sulphur dioxide | C11: 1 | F11: 1
A12: Carbon monoxide | C12: 100% 95% of 10-min averages | F12: 1
A13: Total organic carbon | C13: 1 | F13: 1
A14: Hydrogen chloride | C14: 1 | F14: 1
A15: Hydrogen fluoride | C15: 1 | F15: 1
A16: Overall | C16: 1 | F16: 1
A18: Summary of any notifications or non-compliances under the permit
A19: Date | B19: Summary of notification or non-compliance [including Line/Reference] | E19: Reason | H19: Measures taken to prevent reoccurrence
A20: 02.03.2023 | B20: Schedule 5 (a) notification for potential release to atmosphere from the process through the expansion flap on the boiler roof. | E20: The root cause of these events was a rapid energy release inside the boiler pass creating an overpressure situation which opened, by design, the expansion flap(s) on the boiler roof. The release is an emergency safety feature designed into the boiler to reduce chamber pressure and potential harm to personnel working within the boiler building. On all occasions the pressure reduced to safe limits and the flaps closed within seconds of operating. | H20: The rapid energy release's (root cause) were unplanned events – therefore not able to be predicted/ prevented in the future. The cause's have been linked to tube leaks and unidentified gas bottles in the waste which is an industry-wide issue. enfinium Kemsley monitor the boiler condition and are adding Inconel to strengthen the boiler tubes. enfinium Kemsley also carries out regular waste inspections and targets any identified problems with suppliers and have also engaged with suppliers via regular duty of care checks and provided training and education through its “No BEARS” (bulky, explosive, anything baled and reels) Campaign.
A21: 05.03.2023 | B21: Schedule 5 (a) notification for potential release to atmosphere from the process through the expansion flap on the boiler roof.
A22: 04.05.2023 | B22: Schedule 5 (a) notification for potential release to atmosphere from the process through the expansion flap on the boiler roof.
A23: 06.05.2023 | B23: Schedule 5 (a) notification for potential release to atmosphere from the process through the expansion flap on the boiler roof.
A24: 02.06.2023 | B24: Schedule 5 (a) notification for potential release to atmosphere from the process through the expansion flap on the boiler roof.
A25: 06.06.2023 | B25: Schedule 5 (a) notification for potential release to atmosphere from the process through the expansion flap on the boiler roof.
A26: 27.07.2023 | B26: Schedule 5 (a) notification for potential release to atmosphere from the process through the expansion flap on the boiler roof.
A27: 08.08.2023 | B27: Schedule 5 (a) notification for potential release to atmosphere from the process through the expansion flap on the boiler roof.
A28: 23.08.2023 | B28: Schedule 5 (a) notification for potential release to atmosphere from the process through the expansion flap on the boiler roof.
A29: 17.12.2023 | B29: Schedule 5 (a) notification for potential release to atmosphere from the process through the expansion flap on the boiler roof.
A31: Summary of any complaints received and actions to taken to resolve them.
A32: Date | B32: Summary of complaint [including Line/Reference] | E32: Reason * | H32: Measures taken to prevent reoccurrence
A33: No complaints received in 2023
E38: * including whether substantiated by the operator or the EA

Sheet Improvements
A1: =+'Cover Page'!$B$29 -> Annual Performance Report 2023 | E1: =+'Cover Page'!$B$33 -> Kemsley Generating Station
A3: Summary of Plant Improvements
A5: Summary of any efficiency improvements that have been completed within the year.
A6: During the planned outages a programme of Inconel coating application to boiler tubes has been carried out. This coating increases the resistance to corrosion and reducing downtime caused by tubes leaks. This in turn increases the availability of the plant with less downtime and re-heating of the plant meaning more efficient operations. Gale breakers have been installed to the Air Cooled Condensers (ACC) improving their efficiency by reducing wind sheer. A forced cooling system is being installed on the turbine to enable cooling of the turbine to a safe working temperature within 24 hours rather than the current 80 hour cooling time. This will significantly reduce the time of turbine maintenance improving the efficeny with a quicker return to service and avoidance of burning waste without energy recovery. Work is ongoing on optamisation of combustion within the plant. This ensures the conditionas and perameters are set correctly for optimal burning conditions enabling the efficient and compliant processing of waste with optimum energy recovery. Work has commenced on widining the roadways to reduce waiting times of vehicles, this will result in a quicker turnaround times and reduce the exhaust fumes from idling vehicles. The Kemsley facility continues to operate with an approved R1 Status.
A16: Summary of any permit improvement conditions that have been completed within the year and the resulting environmental benefits.
A17: Summary the IC status: - IC1 - Environmental Management System - Submitted 15/07/2021, Discharged 22/07/2021. - IC2 - Commissioning Report - Submitted 04/01/2021, Discharged 02/11/2021. - IC3 - Performance and Optimisation of the SNCR System - Submitted 21/12/2021, EA requested further information and it has been agreed this will be submitted as part of IC8 within the new permit. - IC4 - Air dispersion Modelling - Submitted 08/10/2021, Discharged 23/08/2023. - IC5 - T2S (Residence Time) Testing Report - Submitted 04/12/2020, Discharged 06/08/2021. - IC6 - Review of Energy Efficiency Measures - Submitted 25/08/2021, Discharged 23/08/2023. - IC7 - Incineration of Sludges - Submitted 25/08/2021, Discharged 31/10/2022. - IC8 - NOx Reduction Trial - Submitted 31/10/2023, Awaiting EA response. - IC9 - Demonstration of Low and Stable Mercury content (BAT 4) - Submitted 04/09/2023, Awaiting EA response. - IC10 - Demonstration of Low and Stable Dioxin content (BAT 4) - Submitted 04/09/2023, Awaiting EA response. These submissions provide evidence that the plant has been installed and operated as per design/ permit requirements.
A27: Summary of any changes to the plant or operating techniques which required a variation to the permit and a summary of the resulting environmental impact.
A28: No changes to plant or operating techniques requiring a variation application in 2023.
A38: Summary of any other improvements made to the plant or planned to be made and a summary of the resulting environmental benefits.
A39: A second standby Continuous Emissions Measurement System (CEMS) has been installed meaning the facility now has four CEMS, a duty and a standby on each line enabling 100% redundancy. This will provide full coverage ensuring no data is lost during malfunction of duty CEMS on either combustion lines. A trial of higher specification stack flow meters (Stackflow400) is underway and showing good correlation with current flow meters. The Stackflow400 meters will be installed across all lines in 2024 providing continuously monitored flow data with a higher accuracy and ability for calibration. An Amesa-B unit has been installed to improve the reporting of biogenic carbon fractions.​ All required testing and trials in accordance with the BREF and new permit was completed as required by the Environmental Permit. The facility is now successfully operating within the new lower Emission Limit Value's (ELV's). Amesa-B project completed – now in operation. ​

Sheet Public Liasion
A1: =+'Cover Page'!$B$29 -> Annual Performance Report 2023 | E1: =+'Cover Page'!$B$33 -> Kemsley Generating Station
A3: Details of Public & Stakeholder Liaison
A5: Summary of events held during the reporting year.
A6: Date | C6: Description
A7: Monthly | C7: Project meeting with local businesses - KFBP Forum (including DS Smith, E.On, FGS, MVV, McLaren Dalcour, Swale Local Council, Kent Council, Sea Terminals Ridham, national highways).
A9: Quarterly | C9: Environmental meeting with DS Smith and E.On.
A12: List of events planned for next year
A13: Date | C13: Description
A14: Monthly | C14: Project meeting with local businesses - KFBP Forum (including DS Smith, E.On, FGS, MVV, McLaren Dalcour, Swale Local Council, Kent Council, Sea Terminals Ridham, national highways).
A16: Quarterly | C16: Environmental meeting with DS Smith and E.On.
A19: If you wish to be involved in the public liaison programme, please contact: enfinium Kemsley (01795 685 740)

Sheet CO2 N2O
A1: =+'[1]Cover Page'!$B$29 -> Annual Performance Report 2022 | C1: =+'[1]Cover Page'!$B$33 -> Newhurst ERF
A3: Carbon dioxide emissions and biogenic content of waste inputs | G3: Notes:
A5: Carbon dioxide emissions (all types of plant)
A6: Annual mass of carbon dioxide released | B6: 543,018 tonnes
A7: Annual mass of carbon dioxide released per tonne of waste burned | B7: 0.96 tonnes
A8: Annual mass of carbon dioxide released per MWh of energy exported | B8: 0.78 tonnes/MWh
A9: Description of how annual carbon dioxide mass emission has been calculated | B9: Measured - CEMS Data | G9: Note 1: Where available, data from CO2 CEMS should be used. Otherwise, where no CEMS data is available, a suitable emissions factor should be used based on the tonnage of waste burned e.g.0.992 tCO2/t waste as per Tolvik report 2021, or other justified emissions factor - refer to embedded Environment Agency guidance note above or updated version for suitable descriptive text.
A11: Nitrous oxide emissions (only plants which use ammonia or urea to abate NOx emissions)
A12: Annual mass emissions of nitrous oxide | B12: 27.09 tonnes
A13: Description of how annual nitrous oxide mass emission has been calculated | B13: Measured - CEMS Data | G13: Note 2: Where available, data from N2O CEMS should be used, or if no CEMS data is available, from periodic monitoring. Otherwise, a suitable emissions factor should be used based on the tonnage of waste burned e.g. 0.0981 kgN20/t waste as per 2021 Pollution Inventory data for plants with urea-based SNCR - refer to embedded Environment Agency guidance note above or updated version for suitable descriptive text.
A14: Total annual carbon dioxide and nitrous oxide emissions as carbon dioxide equivalent (whereby 1 t nitrous oxide is equivalent to 298 t carbon dioxide) | B14: 551,091 tonnes CO2e
A16: Biogenic fraction of the waste and biogenic CO2 emissions (only plants burning residual municipal waste, refuse derived fuel or solid recovered fuel)
A17: Yearly average biogenic percentage of the waste by net calorific value (NCV) | B17: 0.409
A18: Description of how biogenic NCV percentage has been calculated or estimated | B18: Bioma | G18: Note 3: Where available, data from waste sampling should be used; otherwise, an estimated figure with justification can be used, or a figure assumed on the basis of a national average e.g. 2017 WRAP data for residual waste of 51.8% biogenic energy content - refer to embedded Environment Agency guidance note above or updated version for suitable descriptive text, quoting standards where relevant.
A19: Percentage of total carbon dioxide emissions arising from biogenic waste | B19: 0.403
A20: Description of how percentage biogenic carbon dioxide emissions have been calculated | B20: Bioma | G20: Note 4: Examples include direct measurement via C14 method or BIOMA software - refer to embedded Environment Agency guidance note above or updated version for suitable descriptive text, quoting standards where relevant. Otherwise, as an approximation (and in lieu of any more accurate metrics which may be developed in future), the measured or estimated biogenic fraction by net calorific value can be assumed to be the same as the biogenic CO2 fraction of the total CO2 emissions from the plant.
A22: Comments:

Sheet Residue Quality
A1: =+'Cover Page'!$B$29 -> Annual Performance Report 2023 | E1: =+'Cover Page'!$B$33 -> Kemsley Generating Station
A3: Residue Quality Monitoring Requirements
A5: Summary of monitoring undertaken and compliance
A6: The residues produced from the process include Incinerator Bottom Ash (IBA) and Air Pollution Control Residues (APCR). The IBA is sampled and sent to an approved testing laboratory twice a month for analysis and both the IBA and APCR are sent for a full hazard analysis once per quarter. All hazard analysis results have demonstrated the IBA to be non-hazardous, APCR is hazardous by nature and disposed of accordingly. All testing of residues in carried out in accordance with the Industrial Emissions Directive and the ESA sampling and testing protocol.
A13: Commentary on any specific events
A14: Date & Event | C14: Description
A15: 01/01/2023 - 31/12/2023 | C15: No specific events, all IBA for 2023 was classed as non-hazardous.
A19: Residue Quality Monitoring Results
A20: Parameter (unit) | C20: Limit | D20: Normal Operation
D21: Bottom ash | F21: APC Residues
A22: Loss on Ignition (average %) | C22: <5% | D22: 2023 Average = 1.4%
A23: Total Organic Carbon (average %) | C23: <3% | D23: 2023 Average = 0.49%
A24: No. of Assessments Undertaken | C24: --- | D24: 24 | F24: 4
A25: No. of Hazardous Results | C25: --- | D25: 0
A27: Comments :
A28: LOI and TOC for the IBA are an average of the 24 samples taken in 2023, no samples exceeded the set limits within the Environmental Permit. All samples were sent for analysis at a fully accredited laboratory.

Sheet Water
A1: =+'Cover Page'!$B$29 -> Annual Performance Report 2023 | E1: =+'Cover Page'!$B$33 -> Kemsley Generating Station
A3: Emissions to Water
A5: Summary of monitoring undertaken and compliance
A6: Water balance is achived by a attenuation pond for rainwater with a closed penstock which can emit to the Swale. Regular visual inspections to check for hydrocarbons and particulate are conducted. The penstock requires manual operation and would only be operated following heavy rainfall to prevent flooding, in which case additional inspections and pH testing would be conducted.
A9: Commentary on any specific events
A10: Date & Event | C10: Description
A11: - | C11: No events in 2023.
A14: Emissions to Water / Sewer
A15: Parameter | D15: Monitoring Frequency | F15: Limit | G15: Target | H15: Max. | I15: Average
A16: None set in any permits or consents

Sheet Air (periodic)
A1: =+'Cover Page'!$B$29 -> Annual Performance Report 2023 | E1: =+'Cover Page'!$B$33 -> Kemsley Generating Station
A3: Emissions to Air (Periodically Monitored)
A5: Summary of monitoring undertaken, standards used and compliance | O5: Notes:
A6: Results are below set limits where applicable and comparable with the results from 2022, with the exception of 1 untypical dioxin result (see comments). Sampling and analysis was carried out by MCERTS certified contractors in accordance with the appropriate standards. | O6: Template may require adjustment for any bespoke monitoring requirements of permit.
A9: Results of emissions to air that are periodically monitored
A10: Substance | C10: Ref. Period | D10: Emission Limit Value | F10: Average | O10: User to add additional tables as necessary, depending on whether quarterly or bi-annual reporting is required for the compliance year
F11: L1 Q1 | G11: L1 Q3 | H11: L1 Annual Average | I11: L2 Q1 | J11: L2 Q3 | K11: L2 Annual Average | L11: Both Line Annual Average
A12: Hydrogen fluoride | C12: 1 hr | D12: 2 mg/m3 | F12: 0.075 | G12: <0.024 | H12: =AVERAGE(F12:G12) -> 0.075 | I12: 0.02 | J12: <0.02 | K12: =AVERAGE(I12:J12) -> 0.02 | L12: =AVERAGE(F12:G12,I12:J12) -> 0.0475
A13: Cd and Th and their compounds | C13: 6-8hrs | D13: 0.05 mg/m3 | F13: 0.00094 | G13: <0.0009 | H13: =AVERAGE(F13:G13) -> 0.00094 | I13: 0.00097 | J13: <0.0009 | K13: =AVERAGE(I13:J13) -> 0.00097 | L13: =AVERAGE(F13:G13,I13:J13) -> 0.000955
A14: Hg and its compounds | C14: 6-8hrs | D14: 0.05 mg/m3 | F14: 0.0024 | G14: 0.0016 | H14: 0.002 | I14: 0.0044 | J14: 0.0043 | K14: 0.00435 | L14: 0.003175
A15: Sb, As, Pb, Cr, Co, Cu, Mn, Ni, V and their compounds | C15: 6-8hrs | D15: 0.5 mg/m3 | F15: 0.028 | G15: 0.0121 | H15: 0.02005 | I15: 0.016 | J15: 0.0097 | K15: 0.01285 | L15: 0.01645
A16: Dioxins & Furans (I-TEQ) | C16: 6-8hrs | D16: 0.1 ng/m3 | F16: 0.0068 | G16: 0.00962 | H16: 0.00821 | I16: 0.01 | J16: 0.0384 | K16: 0.0242 | L16: 0.016205
A17: PCBs (WHO-TEQ Humans / Mammals) | C17: 6-8hrs | D17: None set ng/m3 | F17: 0.0005 | G17: 0.001095 | H17: 0.0007975 | I17: 0.00066 | J17: 0.002876 | K17: 0.001768 | L17: 0.00128275
A18: PCBs (WHO-TEQ Fish) | C18: 6-8hrs | D18: None set ng/m3 | F18: 2.4e-05 | G18: 5.3e-05 | H18: 3.85e-05 | I18: 3.4e-05 | J18: 0.000123 | K18: 7.85e-05 | L18: 5.85e-05
A19: PCBs (WHO-TEQ Birds) | C19: 6-8hrs | D19: None set ng/m3 | F19: 0.001 | G19: 0.002282 | H19: 0.001641 | I19: 0.0015 | J19: 0.003907 | K19: 0.0027035 | L19: 0.00217225
A20: Dioxins & Furans (WHO-TEQ Humans / Mammals) | C20: 6-8hrs | D20: None set ng/m3 | F20: 0.0061 | G20: 0.00949 | H20: 0.007795 | I20: 0.0065 | J20: 0.0366 | K20: 0.02155 | L20: 0.0146725
A21: Dioxins & Furans (WHO-TEQ Fish) | C21: 6-8hrs | D21: None set ng/m3 | F21: 0.0062 | G21: 0.01042 | H21: 0.00831 | I21: 0.0078 | J21: 0.0396 | K21: 0.0237 | L21: 0.016005
A22: Dioxins & Furans (WHO-TEQ Birds) | C22: 6-8hrs | D22: None set ng/m3 | F22: 0.0095 | G22: 0.01506 | H22: 0.01228 | I22: 0.014 | J22: 0.0613 | K22: 0.03765 | L22: 0.024965
A23: Anthanthrene | C23: 6-8hrs | D23: None set µg/m3 | F23: 0.0019 | G23: N/A | H23: 0.0019 | I23: 0.0016 | J23: N/A | K23: =AVERAGE(I23:J23) -> 0.0016 | L23: 0.00175
A24: Benzo(a)anthracene | C24: 6-8hrs | D24: None set µg/m3 | F24: 0.0019 | G24: N/A | H24: 0.0019 | I24: 0.0016 | J24: N/A | K24: 0.0016 | L24: 0.00175
A25: Benzo(a)pyrene | C25: 6-8hrs | D25: None set µg/m3 | F25: 0.0019 | G25: N/A | H25: 0.0019 | I25: 0.0016 | J25: N/A | K25: 0.0016 | L25: 0.00175
A26: Benzo(b)fluoranthene | C26: 6-8hrs | D26: None set µg/m3 | F26: 0.0019 | G26: N/A | H26: 0.0019 | I26: 0.0016 | J26: N/A | K26: 0.0016 | L26: 0.00175
A27: Benzo(b)naptho(2,1-d) thiophene | C27: 6-8hrs | D27: None set µg/m3 | F27: 0.0019 | G27: N/A | H27: 0.0019 | I27: 0.0016 | J27: N/A | K27: 0.0016 | L27: 0.00175
A28: Benzo(c)phenanthrene | C28: 6-8hrs | D28: None set µg/m3 | F28: 0.0019 | G28: N/A | H28: 0.0019 | I28: 0.0016 | J28: N/A | K28: 0.0016 | L28: 0.00175
A29: Benzo(ghi)perylene | C29: 6-8hrs | D29: None set µg/m3 | F29: 0.0077 | G29: N/A | H29: 0.0077 | I29: 0.0016 | J29: N/A | K29: 0.0016 | L29: 0.00465
A30: Benzo(k)fluoranthene | C30: 6-8hrs | D30: None set µg/m3 | F30: 0.0019 | G30: N/A | H30: 0.0019 | I30: 0.0016 | J30: N/A | K30: 0.0016 | L30: 0.00175
A31: Cholanthrene | C31: 6-8hrs | D31: None set µg/m3 | F31: 0.0019 | G31: N/A | H31: 0.0019 | I31: 0.0016 | J31: N/A | K31: 0.0016 | L31: 0.00175
A32: Chrysene | C32: 6-8hrs | D32: None set µg/m3 | F32: 0.0019 | G32: N/A | H32: 0.0019 | I32: 0.0016 | J32: N/A | K32: 0.0016 | L32: 0.00175
A33: Cyclopenta(cd)pyrene | C33: 6-8hrs | D33: None set µg/m3 | F33: 0.0019 | G33: N/A | H33: 0.0019 | I33: 0.0016 | J33: N/A | K33: 0.0016 | L33: 0.00175
A34: Dibenzo(ai)pyrene | C34: 6-8hrs | D34: None set µg/m3 | F34: 0.0019 | G34: N/A | H34: 0.0019 | I34: 0.0016 | J34: N/A | K34: 0.0016 | L34: 0.00175
A35: Dibenzo(ah)anthracene | C35: 6-8hrs | D35: None set µg/m3 | F35: 0.0019 | G35: N/A | H35: 0.0019 | I35: 0.0016 | J35: N/A | K35: 0.0016 | L35: 0.00175
A36: Fluoranthene | C36: 6-8hrs | D36: None set µg/m3 | F36: 0.034 | G36: N/A | H36: 0.034 | I36: 0.04 | J36: N/A | K36: 0.04 | L36: 0.037
A37: Indeno(123-cd) pyrene | C37: 6-8hrs | D37: None set µg/m3 | F37: 0.0019 | G37: N/A | H37: 0.0019 | I37: 0.0016 | J37: N/A | K37: 0.0016 | L37: 0.00175
A38: Naphthalene | C38: 6-8hrs | D38: None set µg/m3 | F38: 0.1 | G38: N/A | H38: 0.1 | I38: 0.13 | J38: N/A | K38: 0.13 | L38: 0.115
A39: Comments :
A40: Specific individual poly-cyclic aromatic hydrocarbons (PAHs) monitoring is completed annually as per Table S3.1 in Environmental Permit EPR/JP3135DK/V006

Sheet Air (CEMS)
A1: =+'Cover Page'!$B$29 -> Annual Performance Report 2023 | I1: =+'Cover Page'!$B$33 -> Kemsley Generating Station
A3: Emissions to Air (continously monitored)
P4: Notes:
A5: Summary of monitoring undertaken, standards used and compliance | P5: Template may require adjustment for any bespoke monitoring requirements of permit
A6: For 2023, the facility achieve 100% compliance with the limits set in the Environmental Permit for all continiuously monitored determinands. HCl, SO2, NOx, TOC and CO all have limits set out in the Environmental Permit; these determinands are continuously monitored by CEMS's in compliance with EN 14181. NH3, O2, CO2 and Water Vapour and are also continuously monitored by the CEMS's. All instruments are QAL1 compliant and undergo annual checks either in the form of a QAL2 or an Annual Surveillance Test compliant with the requirements of EN 14181. | P6: Report to 2 decimal places, i.e. xx.xx%
A11: Results of emissions to air that are continuously monitored (maximum and average values for each line)
A12: Substance | B12: Reference Period | C12: Emission Limit Value | D12: A1 | F12: A2 | H12: A3 | J12: A4 | L12: A5
D13: Max. | E13: Avg. | F13: Max. | G13: Avg. | H13: Max. | I13: Avg. | J13: Max. | K13: Avg. | L13: Max. | M13: Avg.
A14: Oxides of nitrogen | B14: Daily mean | C14: 200 mg/m3 | D14: =NOx!O19 -> 187.14 | E14: =NOx!N19 -> 169.4833333 | F14: =NOx!O34 -> 186.01 | G14: =NOx!N34 -> 169.6141667 | H14: - | I14: - | J14: - | K14: - | L14: - | M14: -
B15: ½ hourly mean | C15: 400 mg/m3 | D15: =NOx!M19 -> 348.2 | E15: =NOx!L19 -> 169.5825 | F15: =NOx!M34 -> 244.7 | G15: =NOx!L34 -> 169.6716667 | H15: - | I15: - | J15: - | K15: - | L15: - | M15: -
A16: Particulates | B16: Daily mean | C16: 10 mg/m3 | D16: =Particulates!O19 -> 0.7 | E16: =Particulates!N19 -> 0.1508333333 | F16: =Particulates!O34 -> 0.77 | G16: =Particulates!N34 -> 0.1291666667 | H16: - | I16: - | J16: - | K16: - | L16: - | M16: -
B17: ½ hourly mean | C17: 30 mg/m3 | D17: =Particulates!M19 -> 3.02 | E17: =Particulates!L19 -> 0.15 | F17: =Particulates!M34 -> 1.74 | G17: =Particulates!L34 -> 0.1291666667 | H17: - | I17: - | J17: - | K17: - | L17: - | M17: -
A18: Total Organic Carbon | B18: Daily mean | C18: 10 mg/m3 | D18: =TOC!O19 -> 0.52 | E18: =TOC!N19 -> 0.2341666667 | F18: =TOC!O34 -> 0.52 | G18: =TOC!N34 -> 0.2716666667 | H18: - | I18: - | J18: - | K18: - | L18: - | M18: -
B19: ½ hourly mean | C19: 20 mg/m3 | D19: =TOC!M19 -> 7.76 | E19: =TOC!L19 -> 0.2408333333 | F19: =TOC!M34 -> 3.83 | G19: =TOC!L34 -> 0.2741666667 | H19: - | I19: - | J19: - | K19: - | L19: - | M19: -
A20: Hydrogen chloride | B20: Daily mean | C20: 10 mg/m3 | D20: =HCl!O19 -> 7.85 | E20: =HCl!N19 -> 4.611666667 | F20: =HCl!O34 -> 8.43 | G20: =HCl!M34 -> 15.75 | H20: - | I20: - | J20: - | K20: - | L20: - | M20: -
B21: ½ hourly mean | C21: 60 mg/m3 | D21: =HCl!M19 -> 13.59 | E21: =HCl!L19 -> 4.589166667 | F21: =HCl!N34 -> 5.126666667 | G21: =HCl!L34 -> 5.105 | H21: - | I21: - | J21: - | K21: - | L21: - | M21: -
A22: Sulphur dioxide | B22: Daily mean | C22: 50 mg/m3 | D22: ='SO2'!O19 -> 23.12 | E22: ='SO2'!N19 -> 4.716666667 | F22: ='SO2'!O34 -> 29.92 | G22: ='SO2'!N34 -> 4.245 | H22: - | I22: - | J22: - | K22: - | L22: - | M22: -
B23: ½ hourly mean | C23: 200 mg/m3 | D23: ='SO2'!M19 -> 157.11 | E23: ='SO2'!L19 -> 4.981666667 | F23: ='SO2'!M34 -> 155.99 | G23: ='SO2'!L34 -> 4.3325 | H23: - | I23: - | J23: - | K23: - | L23: - | M23: -
A24: Carbon monoxide | B24: Daily mean | C24: 50 mg/m3 | D24: ='CO 95% 10 min'!Q19 -> 7.96 | E24: ='CO 95% 10 min'!P19 -> 3.989166667 | F24: ='CO 95% 10 min'!Q34 -> 8.77 | G24: ='CO 95% 10 min'!O34 -> 567.21 | H24: - | I24: - | J24: - | K24: - | L24: - | M24: -
B25: 95%ile 10-min avg * | C25: 150 mg/m3 * | D25: ='CO 95% 10 min'!O19 -> 612.06 | E25: ='CO 95% 10 min'!M19 -> 14.28 | F25: ='CO 95% 10 min'!P34 -> 2.973333333 | G25: ='CO 95% 10 min'!M34 -> 10.65 | H25: - | I25: - | J25: - | K25: - | L25: - | M25: -
A26: Ammonia | B26: Daily mean | C26: No limit set | D26: ='NH3'!O19 -> 5.34 | E26: ='NH3'!N19 -> 0.6508333333 | F26: ='NH3'!O34 -> 0.73 | G26: ='NH3'!N34 -> 0.1625 | H26: - | I26: - | J26: - | K26: - | L26: - | M26: -
A27: * = delete or amend as appropriate
A28: Comments :
A29: K3 facility operates 2 lines (2 boilers and 2 emission points) with 1 common turbine.

Sheet HCl
A1: =+'Cover Page'!$B$29 -> Annual Performance Report 2023 | E1: =+'Cover Page'!$B$33 -> Kemsley Generating Station
A3: Monitoring of Hydrogen Chloride emissions | D3: Whole Installation | G3: See Notes in Cell Q3 | J3: =+A3 -> Monitoring of Hydrogen Chloride emissions | N3: Per Combustion Line | Q3: Notes:
Q4: User to add logic to complete Whole installation, Table A5:G18. From the data in Per Combustion Line, Table J6:O79, subject to No. of lines installed
A5: mg/Nm3 | B5: 1/2 Hourly Reference Periods | E5: Daily Reference Periods
A6: =+'Cover Page'!C39 -> 2023 | B6: 1/2 hourly HCl ELV | C6: Monthly 1/2 hourly mean | D6: Highest 1/2 hourly maximum | E6: Daily HCl ELV | F6: Monthly daily mean | G6: Highest daily maximum | J6: =+A6 -> 2023 | K6: mg/Nm3 | L6: Monthly 1/2 hourly mean | M6: Monthly 1/2 hourly maximum | N6: Monthly daily mean | O6: Monthly daily maximum
A7: Jan | B7: 60 | C7: 3.22 | D7: 9.95 | E7: 10 | F7: 3.22 | G7: 4.79 | J7: A1 | K7: Jan | L7: 3.04 | M7: 9.95 | N7: 3.04 | O7: 4.28
A8: Feb | B8: 60 | C8: 3.24 | D8: 10.67 | E8: 10 | F8: 3.26 | G8: 4.89 | K8: Feb | L8: 2.91 | M8: 10.67 | N8: 2.92 | O8: 4.62
A9: Mar | B9: 60 | C9: 3.32 | D9: 11.02 | E9: 10 | F9: 3.34 | G9: 4.96 | K9: Mar | L9: 3.27 | M9: 11.02 | N9: 3.32 | O9: 4.96 | Q9: Whole Installation table A5:G18:
A10: Apr | B10: 60 | C10: 5.32 | D10: 14.59 | E10: 10 | F10: 5.35 | G10: 7.85 | K10: Apr | L10: 5.5 | M10: 11.35 | N10: 5.55 | O10: 7.85 | Q10: Mean: for 1/2 hourly and daily periods calculate mean of values across all operational combustion lines for the month
A11: May | B11: 60 | C11: 6.38 | D11: 11.62 | E11: 10 | F11: 6.38 | G11: 8.43 | K11: May | L11: 5.79 | M11: 11.62 | N11: 5.73 | O11: 7.77
A12: Jun | B12: 60 | C12: 5.66 | D12: 13.46 | E12: 10 | F12: 5.61 | G12: 7.85 | K12: Jun | L12: 5.17 | M12: 13 | N12: 5.17 | O12: 7.78
A13: Jul | B13: 60 | C13: 5.72 | D13: 13.46 | E13: 10 | F13: 5.8 | G13: 7.85 | K13: Jul | L13: 5.46 | M13: 13.46 | N13: 5.51 | O13: 7.85 | Q13: Maximum: for 1/2 hourly and daily periods use the highest value across all operational combustion lines for the month
A14: Aug | B14: 60 | C14: 6.01 | D14: 15.75 | E14: 10 | F14: 6.06 | G14: 8.36 | K14: Aug | L14: 5.21 | M14: 13.59 | N14: 5.27 | O14: 7.65
A15: Sep | B15: 60 | C15: 5.94 | D15: 12.93 | E15: 10 | F15: 5.96 | G15: 7.82 | K15: Sep | L15: 5.56 | M15: 10.79 | N15: 5.52 | O15: 6.88
A16: Oct | B16: 60 | C16: 4.91 | D16: 12.66 | E16: 10 | F16: 4.97 | G16: 7.03 | K16: Oct | L16: 4.67 | M16: 12.66 | N16: 4.73 | O16: 7.03
A17: Nov | B17: 60 | C17: 3.94 | D17: 13.32 | E17: 10 | F17: 3.95 | G17: 6.85 | K17: Nov | L17: 4.11 | M17: 10.03 | N17: 4.14 | O17: 6.85
A18: Dec | B18: 60 | C18: 4.58 | D18: 11.94 | E18: 10 | F18: 4.64 | G18: 6.73 | K18: Dec | L18: 4.38 | M18: 10.65 | N18: 4.44 | O18: 6.58
K19: Annual | L19: =AVERAGE(L7:L18) -> 4.589166667 | M19: =MAX(M7:M18) -> 13.59 | N19: =AVERAGE(N7:N18) -> 4.611666667 | O19: =MAX(O7:O18) -> 7.85
J21: =+A6 -> 2023 | K21: mg/Nm3 | L21: Monthly 1/2 hourly mean | M21: Monthly 1/2 hourly maximum | N21: Monthly daily mean | O21: Monthly daily maximum
J22: A2 | K22: Jan | L22: 3.41 | M22: 9.23 | N22: 3.41 | O22: 4.79
K23: Feb | L23: 3.53 | M23: 10.32 | N23: 3.53 | O23: 4.89
K24: Mar | L24: 3.34 | M24: 10.22 | N24: 3.34 | O24: 4.38
K25: Apr | L25: 5.17 | M25: 14.59 | N25: 5.17 | O25: 7.84
K26: May | L26: 6.94 | M26: 10.66 | N26: 6.99 | O26: 8.43
K27: Jun | L27: 6.25 | M27: 13.46 | N27: 6.21 | O27: 7.85
K28: Jul | L28: 6.03 | M28: 12.16 | N28: 6.14 | O28: 7.58
K29: Aug | L29: 6.67 | M29: 15.75 | N29: 6.67 | O29: 8.36
K30: Sep | L30: 6.15 | M30: 12.93 | N30: 6.21 | O30: 7.82
K31: Oct | L31: 5.2 | M31: 10.3 | N31: 5.24 | O31: 6.53
K32: Nov | L32: 3.78 | M32: 13.32 | N32: 3.77 | O32: 5.22
K33: Dec | L33: 4.79 | M33: 11.94 | N33: 4.84 | O33: 6.73
K34: Annual | L34: =AVERAGE(L22:L33) -> 5.105 | M34: =MAX(M22:M33) -> 15.75 | N34: =AVERAGE(N22:N33) -> 5.126666667 | O34: =MAX(O22:O33) -> 8.43
J36: =+A6 -> 2023 | K36: mg/Nm3 | L36: Monthly 1/2 hourly mean | M36: Monthly 1/2 hourly maximum | N36: Monthly daily mean | O36: Monthly daily maximum
J37: A3 | K37: Jan
K38: Feb
K39: Mar
K40: Apr
K41: May
K42: Jun
K43: Jul
K44: Aug
K45: Sep
K46: Oct
K47: Nov
A48: Comments : | K48: Dec
A49: K3 facility operates 2 lines (2 boilers and 2 emission points) with 1 common turbine. | K49: Annual | L49: =AVERAGE(L37:L48) ->  | M49: =MAX(M37:M48) -> 0 | N49: =AVERAGE(N37:N48) ->  | O49: =MAX(O37:O48) -> 0
J51: =+A6 -> 2023 | K51: mg/Nm3 | L51: Monthly 1/2 hourly mean | M51: Monthly 1/2 hourly maximum | N51: Monthly daily mean | O51: Monthly daily maximum
J52: A4 | K52: Jan
K53: Feb
K54: Mar
K55: Apr
K56: May
K57: Jun
K58: Jul
K59: Aug
K60: Sep
K61: Oct
K62: Nov
K63: Dec
K64: Annual | L64: =AVERAGE(L52:L63) ->  | M64: =MAX(M52:M63) -> 0 | N64: =AVERAGE(N52:N63) ->  | O64: =MAX(O52:O63) -> 0
J66: =+A6 -> 2023 | K66: mg/Nm3 | L66: Monthly 1/2 hourly mean | M66: Monthly 1/2 hourly maximum | N66: Monthly daily mean | O66: Monthly daily maximum
J67: A5 | K67: Jan
K68: Feb
K69: Mar
K70: Apr
K71: May
K72: Jun
K73: Jul
K74: Aug
K75: Sep
K76: Oct
K77: Nov
K78: Dec
K79: Annual | L79: =AVERAGE(L67:L78) ->  | M79: =MAX(M67:M78) -> 0 | N79: =AVERAGE(N67:N78) ->  | O79: =MAX(O67:O78) -> 0

Sheet SO2
A1: =+'Cover Page'!$B$29 -> Annual Performance Report 2023 | E1: =+'Cover Page'!$B$33 -> Kemsley Generating Station
A3: Monitoring of Sulphur dioxide emissions | D3: Whole Installation | G3: See Notes in Cell Q3 | J3: =+A3 -> Monitoring of Sulphur dioxide emissions | N3: Per Combustion Line | Q3: Notes:
Q4: User to add logic to complete Whole installation, Table A5:G18. From the data in Per Combustion Line, Table J6:O79, subject to No. of lines installed
A5: mg/Nm3 | B5: 1/2 Hourly Reference Periods | E5: Daily Reference Periods
A6: =+'Cover Page'!C39 -> 2023 | B6: 1/2 hourly SO2 ELV | C6: Monthly 1/2 hourly mean | D6: Highest 1/2 hourly maximum | E6: Daily SO2 ELV | F6: Monthly daily mean | G6: Highest daily maximum | J6: =+A6 -> 2023 | K6: mg/Nm3 | L6: Monthly 1/2 hourly mean | M6: Monthly 1/2 hourly maximum | N6: Monthly daily mean | O6: Monthly daily maximum
A7: Jan | B7: 200 | C7: 1.4 | D7: 106.98 | E7: 50 | F7: 1.4 | G7: 8.54 | J7: A1 | K7: Jan | L7: 1 | M7: 38.38 | N7: 1 | O7: 8.54
A8: Feb | B8: 200 | C8: 2.1 | D8: 78.77 | E8: 50 | F8: 1.85 | G8: 11.2 | K8: Feb | L8: 1.34 | M8: 78.77 | N8: 0.74 | O8: 11.2
A9: Mar | B9: 200 | C9: 3.65 | D9: 78.44 | E9: 50 | F9: 3.67 | G9: 15.45 | K9: Mar | L9: 4.36 | M9: 78.44 | N9: 4.26 | O9: 15.45 | Q9: Whole Installation table A5:G18:
A10: Apr | B10: 200 | C10: 5.27 | D10: 42.29 | E10: 50 | F10: 5.24 | G10: 11.74 | K10: Apr | L10: 5.64 | M10: 40.46 | N10: 5.58 | O10: 11.74 | Q10: Mean: for 1/2 hourly and daily periods calculate mean of values across all operational combustion lines for the month
A11: May | B11: 200 | C11: 6.63 | D11: 68.35 | E11: 50 | F11: 6.51 | G11: 19.55 | K11: May | L11: 7.87 | M11: 68.35 | N11: 7.6 | O11: 19.55
A12: Jun | B12: 200 | C12: 5.95 | D12: 119.84 | E12: 50 | F12: 5.83 | G12: 15.64 | K12: Jun | L12: 5.93 | M12: 119.84 | N12: 5.93 | O12: 15.64
A13: Jul | B13: 200 | C13: 6 | D13: 64.54 | E13: 50 | F13: 5.77 | G13: 23.12 | K13: Jul | L13: 7.81 | M13: 64.54 | N13: 7.41 | O13: 23.12 | Q13: Maximum: for 1/2 hourly and daily periods use the highest value across all operational combustion lines for the month
A14: Aug | B14: 200 | C14: 4.76 | D14: 81.66 | E14: 50 | F14: 4.19 | G14: 12.78 | K14: Aug | L14: 6.72 | M14: 81.66 | N14: 5.55 | O14: 12.78
A15: Sep | B15: 200 | C15: 5.14 | D15: 155.99 | E15: 50 | F15: 4.66 | G15: 15.59 | K15: Sep | L15: 3.17 | M15: 39.28 | N15: 2.79 | O15: 4.8
A16: Oct | B16: 200 | C16: 4.55 | D16: 53.11 | E16: 50 | F16: 4.53 | G16: 9.84 | K16: Oct | L16: 4.28 | M16: 53.11 | N16: 4.46 | O16: 9.49
A17: Nov | B17: 200 | C17: 6.64 | D17: 99.61 | E17: 50 | F17: 6.6 | G17: 29.92 | K17: Nov | L17: 6.64 | M17: 78.98 | N17: 6.36 | O17: 20.57
A18: Dec | B18: 200 | C18: 3.95 | D18: 157.11 | E18: 50 | F18: 3.81 | G18: 20.2 | K18: Dec | L18: 5.02 | M18: 157.11 | N18: 4.92 | O18: 20.2
K19: Annual | L19: =AVERAGE(L7:L18) -> 4.981666667 | M19: =MAX(M7:M18) -> 157.11 | N19: =AVERAGE(N7:N18) -> 4.716666667 | O19: =MAX(O7:O18) -> 23.12
J21: =+A6 -> 2023 | K21: mg/Nm3 | L21: Monthly 1/2 hourly mean | M21: Monthly 1/2 hourly maximum | N21: Monthly daily mean | O21: Monthly daily maximum
J22: A2 | K22: Jan | L22: 1.8 | M22: 106.98 | N22: 1.8 | O22: 7.05
K23: Feb | L23: 2.76 | M23: 43.66 | N23: 2.76 | O23: 8.94
K24: Mar | L24: 3.37 | M24: 38.33 | N24: 3.46 | O24: 7.04
K25: Apr | L25: 4.94 | M25: 42.29 | N25: 4.94 | O25: 10.3
K26: May | L26: 5.47 | M26: 36.65 | N26: 5.49 | O26: 8.8
K27: Jun | L27: 5.98 | M27: 58.09 | N27: 5.7 | O27: 15.36
K28: Jul | L28: 3.94 | M28: 55.93 | N28: 3.86 | O28: 11.73
K29: Aug | L29: 3.13 | M29: 50.14 | N29: 3.13 | O29: 6.91
K30: Sep | L30: 6.23 | M30: 155.99 | N30: 5.72 | O30: 15.59
K31: Oct | L31: 4.87 | M31: 41.11 | N31: 4.61 | O31: 9.84
K32: Nov | L32: 6.65 | M32: 99.61 | N32: 6.82 | O32: 29.92
K33: Dec | L33: 2.85 | M33: 81.83 | N33: 2.65 | O33: 16.33
K34: Annual | L34: =AVERAGE(L22:L33) -> 4.3325 | M34: =MAX(M22:M33) -> 155.99 | N34: =AVERAGE(N22:N33) -> 4.245 | O34: =MAX(O22:O33) -> 29.92
J36: =+A6 -> 2023 | K36: mg/Nm3 | L36: Monthly 1/2 hourly mean | M36: Monthly 1/2 hourly maximum | N36: Monthly daily mean | O36: Monthly daily maximum
J37: A3 | K37: Jan
K38: Feb
K39: Mar
K40: Apr
K41: May
K42: Jun
K43: Jul
K44: Aug
K45: Sep
K46: Oct
K47: Nov
A48: Comments : | K48: Dec
A49: K3 facility operates 2 lines (2 boilers and 2 emission points) with 1 common turbine. | K49: Annual | L49: =AVERAGE(L37:L48) ->  | M49: =MAX(M37:M48) -> 0 | N49: =AVERAGE(N37:N48) ->  | O49: =MAX(O37:O48) -> 0
J51: =+A6 -> 2023 | K51: mg/Nm3 | L51: Monthly 1/2 hourly mean | M51: Monthly 1/2 hourly maximum | N51: Monthly daily mean | O51: Monthly daily maximum
J52: A4 | K52: Jan
K53: Feb
K54: Mar
K55: Apr
K56: May
K57: Jun
K58: Jul
K59: Aug
K60: Sep
K61: Oct
K62: Nov
K63: Dec
K64: Annual | L64: =AVERAGE(L52:L63) ->  | M64: =MAX(M52:M63) -> 0 | N64: =AVERAGE(N52:N63) ->  | O64: =MAX(O52:O63) -> 0
J66: =+A6 -> 2023 | K66: mg/Nm3 | L66: Monthly 1/2 hourly mean | M66: Monthly 1/2 hourly maximum | N66: Monthly daily mean | O66: Monthly daily maximum
J67: A5 | K67: Jan
K68: Feb
K69: Mar
K70: Apr
K71: May
K72: Jun
K73: Jul
K74: Aug
K75: Sep
K76: Oct
K77: Nov
K78: Dec
K79: Annual | L79: =AVERAGE(L67:L78) ->  | M79: =MAX(M67:M78) -> 0 | N79: =AVERAGE(N67:N78) ->  | O79: =MAX(O67:O78) -> 0

Sheet NOx
A1: =+'Cover Page'!$B$29 -> Annual Performance Report 2023 | E1: =+'Cover Page'!$B$33 -> Kemsley Generating Station
A3: Monitoring of Oxides of Nitrogen emissions | D3: Whole Installation | G3: See Notes in Cell Q3 | J3: =+A3 -> Monitoring of Oxides of Nitrogen emissions | N3: Per Combustion Line | Q3: Notes:
Q4: User to add logic to complete Whole installation, Table A5:G18. From the data in Per Combustion Line, Table J6:O79, subject to No. of lines installed
A5: mg/Nm3 | B5: 1/2 Hourly Reference Periods | E5: Daily Reference Periods
A6: =+'Cover Page'!C39 -> 2023 | B6: 1/2 hourly NOx ELV | C6: Monthly 1/2 hourly mean | D6: Highest 1/2 hourly maximum | E6: Daily NOx ELV | F6: Monthly daily mean | G6: Highest daily maximum | J6: =+A6 -> 2023 | K6: mg/Nm3 | L6: Monthly 1/2 hourly mean | M6: Monthly 1/2 hourly maximum | N6: Monthly daily mean | O6: Monthly daily maximum
A7: Jan | B7: 400 | C7: 174.82 | D7: 262.92 | E7: 200 | F7: 174.82 | G7: 177.14 | J7: A1 | K7: Jan | L7: 175.32 | M7: 262.92 | N7: 175.32 | O7: 177.14
A8: Feb | B8: 400 | C8: 174.75 | D8: 201.21 | E8: 200 | F8: 174.74 | G8: 175.64 | K8: Feb | L8: 175.19 | M8: 198.6 | N8: 175.19 | O8: 175.58
A9: Mar | B9: 400 | C9: 175.36 | D9: 227.6 | E9: 200 | F9: 175.37 | G9: 186.01 | K9: Mar | L9: 175.17 | M9: 196.36 | N9: 175.18 | O9: 175.74 | Q9: Whole Installation table A5:G18:
A10: Apr | B10: 400 | C10: 175.38 | D10: 210.1 | E10: 200 | F10: 175.38 | G10: 178.16 | K10: Apr | L10: 175.55 | M10: 210.1 | N10: 175.55 | O10: 178.16 | Q10: Mean: for 1/2 hourly and daily periods calculate mean of values across all operational combustion lines for the month
A11: May | B11: 400 | C11: 175.22 | D11: 220.42 | E11: 200 | F11: 175.21 | G11: 177.03 | K11: May | L11: 175.25 | M11: 220.42 | N11: 175.24 | O11: 177.03
A12: Jun | B12: 400 | C12: 174.28 | D12: 222.4 | E12: 200 | F12: 174.35 | G12: 187.14 | K12: Jun | L12: 176.25 | M12: 222.4 | N12: 176.25 | O12: 187.14
A13: Jul | B13: 400 | C13: 169.17 | D13: 244.7 | E13: 200 | F13: 169.26 | G13: 176.92 | K13: Jul | L13: 173.79 | M13: 210.03 | N13: 173.75 | O13: 175.7 | Q13: Maximum: for 1/2 hourly and daily periods use the highest value across all operational combustion lines for the month
A14: Aug | B14: 400 | C14: 162.09 | D14: 348.2 | E14: 200 | F14: 162.03 | G14: 177.43 | K14: Aug | L14: 146.51 | M14: 348.2 | N14: 145.29 | O14: 177.43
A15: Sep | B15: 400 | C15: 168.52 | D15: 206.77 | E15: 200 | F15: 168.12 | G15: 176.05 | K15: Sep | L15: 174.99 | M15: 206.77 | N15: 174.99 | O15: 176.05
A16: Oct | B16: 400 | C16: 161.83 | D16: 278.89 | E16: 200 | F16: 161.83 | G16: 163.88 | K16: Oct | L16: 161.87 | M16: 278.89 | N16: 161.88 | O16: 163.88
A17: Nov | B17: 400 | C17: 161.98 | D17: 209.98 | E17: 200 | F17: 161.98 | G17: 167.44 | K17: Nov | L17: 162.32 | M17: 209.98 | N17: 162.33 | O17: 167.44
A18: Dec | B18: 400 | C18: 162.59 | D18: 191.29 | E18: 200 | F18: 162.63 | G18: 169.62 | K18: Dec | L18: 162.78 | M18: 191.29 | N18: 162.83 | O18: 169.62
K19: Annual | L19: =AVERAGE(L7:L18) -> 169.5825 | M19: =MAX(M7:M18) -> 348.2 | N19: =AVERAGE(N7:N18) -> 169.4833333 | O19: =MAX(O7:O18) -> 187.14
J21: =+A6 -> 2023 | K21: mg/Nm3 | L21: Monthly 1/2 hourly mean | M21: Monthly 1/2 hourly maximum | N21: Monthly daily mean | O21: Monthly daily maximum
J22: A2 | K22: Jan | L22: 174.31 | M22: 197.14 | N22: 174.31 | O22: 175.77
K23: Feb | L23: 174.37 | M23: 201.21 | N23: 174.37 | O23: 175.64
K24: Mar | L24: 175.44 | M24: 227.6 | N24: 175.43 | O24: 186.01
K25: Apr | L25: 175.23 | M25: 197.19 | N25: 175.23 | O25: 176.01
K26: May | L26: 175.2 | M26: 195.83 | N26: 175.19 | O26: 175.42
K27: Jun | L27: 171.83 | M27: 216.67 | N27: 171.76 | O27: 175.93
K28: Jul | L28: 163.91 | M28: 244.7 | N28: 164.02 | O28: 176.92
K29: Aug | L29: 175 | M29: 215.95 | N29: 175 | O29: 176.87
K30: Sep | L30: 164.93 | M30: 200.87 | N30: 164.2 | O30: 175.93
K31: Oct | L31: 161.79 | M31: 190.87 | N31: 161.78 | O31: 163.31
K32: Nov | L32: 161.66 | M32: 183.35 | N32: 161.66 | O32: 162.49
K33: Dec | L33: 162.39 | M33: 182.16 | N33: 162.42 | O33: 169.38
K34: Annual | L34: =AVERAGE(L22:L33) -> 169.6716667 | M34: =MAX(M22:M33) -> 244.7 | N34: =AVERAGE(N22:N33) -> 169.6141667 | O34: =MAX(O22:O33) -> 186.01
J36: =+A6 -> 2023 | K36: mg/Nm3 | L36: Monthly 1/2 hourly mean | M36: Monthly 1/2 hourly maximum | N36: Monthly daily mean | O36: Monthly daily maximum
J37: A3 | K37: Jan
K38: Feb
K39: Mar
K40: Apr
K41: May
K42: Jun
K43: Jul
K44: Aug
K45: Sep
K46: Oct
K47: Nov
A48: Comments : | K48: Dec
A49: K3 facility operates 2 lines (2 boilers and 2 emission points) with 1 common turbine. | K49: Annual | L49: =AVERAGE(L37:L48) ->  | M49: =MAX(M37:M48) -> 0 | N49: =AVERAGE(N37:N48) ->  | O49: =MAX(O37:O48) -> 0
J51: =+A6 -> 2023 | K51: mg/Nm3 | L51: Monthly 1/2 hourly mean | M51: Monthly 1/2 hourly maximum | N51: Monthly daily mean | O51: Monthly daily maximum
J52: A4 | K52: Jan
K53: Feb
K54: Mar
K55: Apr
K56: May
K57: Jun
K58: Jul
K59: Aug
K60: Sep
K61: Oct
K62: Nov
K63: Dec
K64: Annual | L64: =AVERAGE(L52:L63) ->  | M64: =MAX(M52:M63) -> 0 | N64: =AVERAGE(N52:N63) ->  | O64: =MAX(O52:O63) -> 0
J66: =+A6 -> 2023 | K66: mg/Nm3 | L66: Monthly 1/2 hourly mean | M66: Monthly 1/2 hourly maximum | N66: Monthly daily mean | O66: Monthly daily maximum
J67: A5 | K67: Jan
K68: Feb
K69: Mar
K70: Apr
K71: May
K72: Jun
K73: Jul
K74: Aug
K75: Sep
K76: Oct
K77: Nov
K78: Dec
K79: Annual | L79: =AVERAGE(L67:L78) ->  | M79: =MAX(M67:M78) -> 0 | N79: =AVERAGE(N67:N78) ->  | O79: =MAX(O67:O78) -> 0

Sheet TOC
A1: =+'Cover Page'!$B$29 -> Annual Performance Report 2023 | E1: =+'Cover Page'!$B$33 -> Kemsley Generating Station
A3: Monitoring of Total organic carbon emissions | D3: Whole Installation | G3: See Notes in Cell Q3 | J3: =+A3 -> Monitoring of Total organic carbon emissions | N3: Per Combustion Line | Q3: Notes:
Q4: User to add logic to complete Whole installation, Table A5:G18. From the data in Per Combustion Line, Table J6:O79, subject to No. of lines installed
A5: mg/Nm3 | B5: 1/2 Hourly Reference Periods | E5: Daily Reference Periods
A6: =+'Cover Page'!C39 -> 2023 | B6: 1/2 hourly TOC ELV | C6: Monthly 1/2 hourly mean | D6: Highest 1/2 hourly maximum | E6: Daily TOC ELV | F6: Monthly daily mean | G6: Highest daily maximum | J6: =+A6 -> 2023 | K6: mg/Nm3 | L6: Monthly 1/2 hourly mean | M6: Monthly 1/2 hourly maximum | N6: Monthly daily mean | O6: Monthly daily maximum
A7: Jan | B7: 20 | C7: 0.16 | D7: 2.08 | E7: 10 | F7: 0.16 | G7: 0.29 | J7: A1 | K7: Jan | L7: 0.2 | M7: 1.87 | N7: 0.2 | O7: 0.29
A8: Feb | B8: 20 | C8: 0.23 | D8: 2.42 | E8: 10 | F8: 0.22 | G8: 0.39 | K8: Feb | L8: 0.23 | M8: 2.37 | N8: 0.22 | O8: 0.38
A9: Mar | B9: 20 | C9: 0.31 | D9: 4.77 | E9: 10 | F9: 0.31 | G9: 0.45 | K9: Mar | L9: 0.27 | M9: 4.77 | N9: 0.26 | O9: 0.33 | Q9: Whole Installation table A5:G18:
A10: Apr | B10: 20 | C10: 0.27 | D10: 4.02 | E10: 10 | F10: 0.27 | G10: 0.39 | K10: Apr | L10: 0.2 | M10: 4.02 | N10: 0.2 | O10: 0.3 | Q10: Mean: for 1/2 hourly and daily periods calculate mean of values across all operational combustion lines for the month
A11: May | B11: 20 | C11: 0.27 | D11: 2.58 | E11: 10 | F11: 0.27 | G11: 0.43 | K11: May | L11: 0.19 | M11: 2.58 | N11: 0.19 | O11: 0.25
A12: Jun | B12: 20 | C12: 0.3 | D12: 3.02 | E12: 10 | F12: 0.3 | G12: 0.46 | K12: Jun | L12: 0.23 | M12: 1.86 | N12: 0.23 | O12: 0.31
A13: Jul | B13: 20 | C13: 0.28 | D13: 2.84 | E13: 10 | F13: 0.27 | G13: 0.52 | K13: Jul | L13: 0.25 | M13: 1.63 | N13: 0.24 | O13: 0.3 | Q13: Maximum: for 1/2 hourly and daily periods use the highest value across all operational combustion lines for the month
A14: Aug | B14: 20 | C14: 0.35 | D14: 3.83 | E14: 10 | F14: 0.34 | G14: 0.44 | K14: Aug | L14: 0.31 | M14: 2.74 | N14: 0.28 | O14: 0.4
A15: Sep | B15: 20 | C15: 0.38 | D15: 3.06 | E15: 10 | F15: 0.38 | G15: 0.5 | K15: Sep | L15: 0.33 | M15: 3.06 | N15: 0.33 | O15: 0.43
A16: Oct | B16: 20 | C16: 0.21 | D16: 2.33 | E16: 10 | F16: 0.21 | G16: 0.37 | K16: Oct | L16: 0.2 | M16: 2.33 | N16: 0.2 | O16: 0.26
A17: Nov | B17: 20 | C17: 0.18 | D17: 7.76 | E17: 10 | F17: 0.17 | G17: 0.52 | K17: Nov | L17: 0.25 | M17: 7.76 | N17: 0.23 | O17: 0.52
A18: Dec | B18: 20 | C18: 0.17 | D18: 2.39 | E18: 10 | F18: 0.16 | G18: 0.29 | K18: Dec | L18: 0.23 | M18: 1.5 | N18: 0.23 | O18: 0.29
K19: Annual | L19: =AVERAGE(L7:L18) -> 0.2408333333 | M19: =MAX(M7:M18) -> 7.76 | N19: =AVERAGE(N7:N18) -> 0.2341666667 | O19: =MAX(O7:O18) -> 0.52
J21: =+A6 -> 2023 | K21: mg/Nm3 | L21: Monthly 1/2 hourly mean | M21: Monthly 1/2 hourly maximum | N21: Monthly daily mean | O21: Monthly daily maximum
J22: A2 | K22: Jan | L22: 0.13 | M22: 2.08 | N22: 0.13 | O22: 0.29
K23: Feb | L23: 0.22 | M23: 2.42 | N23: 0.22 | O23: 0.39
K24: Mar | L24: 0.33 | M24: 3.16 | N24: 0.33 | O24: 0.45
K25: Apr | L25: 0.33 | M25: 2.01 | N25: 0.33 | O25: 0.39
K26: May | L26: 0.35 | M26: 2.3 | N26: 0.34 | O26: 0.43
K27: Jun | L27: 0.39 | M27: 3.02 | N27: 0.38 | O27: 0.46
K28: Jul | L28: 0.32 | M28: 2.84 | N28: 0.31 | O28: 0.52
K29: Aug | L29: 0.38 | M29: 3.83 | N29: 0.38 | O29: 0.44
K30: Sep | L30: 0.41 | M30: 2.53 | N30: 0.41 | O30: 0.5
K31: Oct | L31: 0.23 | M31: 1.93 | N31: 0.22 | O31: 0.37
K32: Nov | L32: 0.1 | M32: 2.6 | N32: 0.11 | O32: 0.38
K33: Dec | L33: 0.1 | M33: 2.39 | N33: 0.1 | O33: 0.14
K34: Annual | L34: =AVERAGE(L22:L33) -> 0.2741666667 | M34: =MAX(M22:M33) -> 3.83 | N34: =AVERAGE(N22:N33) -> 0.2716666667 | O34: =MAX(O22:O33) -> 0.52
J36: =+A6 -> 2023 | K36: mg/Nm3 | L36: Monthly 1/2 hourly mean | M36: Monthly 1/2 hourly maximum | N36: Monthly daily mean | O36: Monthly daily maximum
J37: A3 | K37: Jan
K38: Feb
K39: Mar
K40: Apr
K41: May
K42: Jun
K43: Jul
K44: Aug
K45: Sep
K46: Oct
K47: Nov
A48: Comments : | K48: Dec
A49: K3 facility operates 2 lines (2 boilers and 2 emission points) with 1 common turbine. | K49: Annual | L49: =AVERAGE(L37:L48) ->  | M49: =MAX(M37:M48) -> 0 | N49: =AVERAGE(N37:N48) ->  | O49: =MAX(O37:O48) -> 0
J51: =+A6 -> 2023 | K51: mg/Nm3 | L51: Monthly 1/2 hourly mean | M51: Monthly 1/2 hourly maximum | N51: Monthly daily mean | O51: Monthly daily maximum
J52: A4 | K52: Jan
K53: Feb
K54: Mar
K55: Apr
K56: May
K57: Jun
K58: Jul
K59: Aug
K60: Sep
K61: Oct
K62: Nov
K63: Dec
K64: Annual | L64: =AVERAGE(L52:L63) ->  | M64: =MAX(M52:M63) -> 0 | N64: =AVERAGE(N52:N63) ->  | O64: =MAX(O52:O63) -> 0
J66: =+A6 -> 2023 | K66: mg/Nm3 | L66: Monthly 1/2 hourly mean | M66: Monthly 1/2 hourly maximum | N66: Monthly daily mean | O66: Monthly daily maximum
J67: A5 | K67: Jan
K68: Feb
K69: Mar
K70: Apr
K71: May
K72: Jun
K73: Jul
K74: Aug
K75: Sep
K76: Oct
K77: Nov
K78: Dec
K79: Annual | L79: =AVERAGE(L67:L78) ->  | M79: =MAX(M67:M78) -> 0 | N79: =AVERAGE(N67:N78) ->  | O79: =MAX(O67:O78) -> 0

Sheet Particulates
A1: =+'Cover Page'!$B$29 -> Annual Performance Report 2023 | E1: =+'Cover Page'!$B$33 -> Kemsley Generating Station
A3: Monitoring of Particulate matter emissions | D3: Whole Installation | G3: See Notes in Cell Q3 | J3: =+A3 -> Monitoring of Particulate matter emissions | N3: Per Combustion Line | Q3: Notes:
Q4: User to add logic to complete Whole installation, Table A5:G18. From the data in Per Combustion Line, Table J6:O79, subject to No. of lines installed
A5: mg/Nm3 | B5: 1/2 Hourly Reference Periods | E5: Daily Reference Periods
A6: =+'Cover Page'!C39 -> 2023 | B6: 1/2 hourly PM ELV | C6: Monthly 1/2 hourly mean | D6: Highest 1/2 hourly maximum | E6: Daily PM ELV | F6: Monthly daily mean | G6: Highest daily maximum | J6: =+A6 -> 2023 | K6: mg/Nm3 | L6: Monthly 1/2 hourly mean | M6: Monthly 1/2 hourly maximum | N6: Monthly daily mean | O6: Monthly daily maximum
A7: Jan | B7: 30 | C7: 0.07 | D7: 0.17 | E7: 10 | F7: 0.07 | G7: 0.08 | J7: A1 | K7: Jan | L7: 0.07 | M7: 0.17 | N7: 0.07 | O7: 0.07
A8: Feb | B8: 30 | C8: 0.07 | D8: 0.11 | E8: 10 | F8: 0.07 | G8: 0.09 | K8: Feb | L8: 0.07 | M8: 0.11 | N8: 0.07 | O8: 0.09
A9: Mar | B9: 30 | C9: 0.13 | D9: 0.97 | E9: 10 | F9: 0.13 | G9: 0.41 | K9: Mar | L9: 0.08 | M9: 0.18 | N9: 0.08 | O9: 0.09 | Q9: Whole Installation table A5:G18:
A10: Apr | B10: 30 | C10: 0.18 | D10: 1.59 | E10: 10 | F10: 0.18 | G10: 0.77 | K10: Apr | L10: 0.07 | M10: 0.14 | N10: 0.07 | O10: 0.07 | Q10: Mean: for 1/2 hourly and daily periods calculate mean of values across all operational combustion lines for the month
A11: May | B11: 30 | C11: 0.08 | D11: 0.16 | E11: 10 | F11: 0.07 | G11: 0.09 | K11: May | L11: 0.07 | M11: 0.16 | N11: 0.07 | O11: 0.09
A12: Jun | B12: 30 | C12: 0.1 | D12: 0.51 | E12: 10 | F12: 0.1 | G12: 0.18 | K12: Jun | L12: 0.09 | M12: 0.33 | N12: 0.09 | O12: 0.12
A13: Jul | B13: 30 | C13: 0.14 | D13: 1.21 | E13: 10 | F13: 0.14 | G13: 0.47 | K13: Jul | L13: 0.18 | M13: 1.21 | N13: 0.18 | O13: 0.47 | Q13: Maximum: for 1/2 hourly and daily periods use the highest value across all operational combustion lines for the month
A14: Aug | B14: 30 | C14: 0.22 | D14: 1.4 | E14: 10 | F14: 0.22 | G14: 0.65 | K14: Aug | L14: 0.37 | M14: 1.4 | N14: 0.39 | O14: 0.65
A15: Sep | B15: 30 | C15: 0.36 | D15: 3.02 | E15: 10 | F15: 0.36 | G15: 0.7 | K15: Sep | L15: 0.56 | M15: 3.02 | N15: 0.55 | O15: 0.7
A16: Oct | B16: 30 | C16: 0.1 | D16: 0.43 | E16: 10 | F16: 0.1 | G16: 0.17 | K16: Oct | L16: 0.08 | M16: 0.12 | N16: 0.08 | O16: 0.08
A17: Nov | B17: 30 | C17: 0.1 | D17: 0.57 | E17: 10 | F17: 0.1 | G17: 0.25 | K17: Nov | L17: 0.08 | M17: 0.13 | N17: 0.08 | O17: 0.08
A18: Dec | B18: 30 | C18: 0.09 | D18: 0.31 | E18: 10 | F18: 0.09 | G18: 0.15 | K18: Dec | L18: 0.08 | M18: 0.11 | N18: 0.08 | O18: 0.09
K19: Annual | L19: =AVERAGE(L7:L18) -> 0.15 | M19: =MAX(M7:M18) -> 3.02 | N19: =AVERAGE(N7:N18) -> 0.1508333333 | O19: =MAX(O7:O18) -> 0.7
J21: =+A6 -> 2023 | K21: mg/Nm3 | L21: Monthly 1/2 hourly mean | M21: Monthly 1/2 hourly maximum | N21: Monthly daily mean | O21: Monthly daily maximum
J22: A2 | K22: Jan | L22: 0.08 | M22: 0.1 | N22: 0.08 | O22: 0.08
K23: Feb | L23: 0.08 | M23: 0.09 | N23: 0.08 | O23: 0.08
K24: Mar | L24: 0.15 | M24: 0.97 | N24: 0.15 | O24: 0.41
K25: Apr | L25: 0.28 | M25: 1.59 | N25: 0.28 | O25: 0.77
K26: May | L26: 0.08 | M26: 0.1 | N26: 0.08 | O26: 0.08
K27: Jun | L27: 0.12 | M27: 0.51 | N27: 0.12 | O27: 0.18
K28: Jul | L28: 0.09 | M28: 0.28 | N28: 0.09 | O28: 0.13
K29: Aug | L29: 0.09 | M29: 0.44 | N29: 0.09 | O29: 0.21
K30: Sep | L30: 0.25 | M30: 1.74 | N30: 0.25 | O30: 0.48
K31: Oct | L31: 0.12 | M31: 0.43 | N31: 0.12 | O31: 0.17
K32: Nov | L32: 0.11 | M32: 0.57 | N32: 0.11 | O32: 0.25
K33: Dec | L33: 0.1 | M33: 0.31 | N33: 0.1 | O33: 0.15
K34: Annual | L34: =AVERAGE(L22:L33) -> 0.1291666667 | M34: =MAX(M22:M33) -> 1.74 | N34: =AVERAGE(N22:N33) -> 0.1291666667 | O34: =MAX(O22:O33) -> 0.77
J36: =+A6 -> 2023 | K36: mg/Nm3 | L36: Monthly 1/2 hourly mean | M36: Monthly 1/2 hourly maximum | N36: Monthly daily mean | O36: Monthly daily maximum
J37: A3 | K37: Jan
K38: Feb
K39: Mar
K40: Apr
K41: May
K42: Jun
K43: Jul
K44: Aug
K45: Sep
K46: Oct
K47: Nov
A48: Comments : | K48: Dec
A49: K3 facility operates 2 lines (2 boilers and 2 emission points) with 1 common turbine. | K49: Annual | L49: =AVERAGE(L37:L48) ->  | M49: =MAX(M37:M48) -> 0 | N49: =AVERAGE(N37:N48) ->  | O49: =MAX(O37:O48) -> 0
J51: =+A6 -> 2023 | K51: mg/Nm3 | L51: Monthly 1/2 hourly mean | M51: Monthly 1/2 hourly maximum | N51: Monthly daily mean | O51: Monthly daily maximum
J52: A4 | K52: Jan
K53: Feb
K54: Mar
K55: Apr
K56: May
K57: Jun
K58: Jul
K59: Aug
K60: Sep
K61: Oct
K62: Nov
K63: Dec
K64: Annual | L64: =AVERAGE(L52:L63) ->  | M64: =MAX(M52:M63) -> 0 | N64: =AVERAGE(N52:N63) ->  | O64: =MAX(O52:O63) -> 0
J66: =+A6 -> 2023 | K66: mg/Nm3 | L66: Monthly 1/2 hourly mean | M66: Monthly 1/2 hourly maximum | N66: Monthly daily mean | O66: Monthly daily maximum
J67: A5 | K67: Jan
K68: Feb
K69: Mar
K70: Apr
K71: May
K72: Jun
K73: Jul
K74: Aug
K75: Sep
K76: Oct
K77: Nov
K78: Dec
K79: Annual | L79: =AVERAGE(L67:L78) ->  | M79: =MAX(M67:M78) -> 0 | N79: =AVERAGE(N67:N78) ->  | O79: =MAX(O67:O78) -> 0

Sheet CO 0.5hourly
A1: =+'Cover Page'!$B$29 -> Annual Performance Report 2023 | E1: =+'Cover Page'!$B$33 -> Kemsley Generating Station
A3: Monitoring of Carbon Monoxide (half hourly) | D3: Whole Installation | G3: See Notes in Cell Q3 | I3: * | J3: =+A3 -> Monitoring of Carbon Monoxide (half hourly) | N3: Per Combustion Line | Q3: Notes:
Q4: User to add logic to complete Whole installation, Table A5:G18. From the data in Per Combustion Line, Table J6:O79, subject to No. of lines installed
A5: mg/Nm3 | B5: 1/2 Hourly Reference Periods* | E5: Daily Reference Periods
A6: =+'Cover Page'!C39 -> 2023 | B6: 1/2 hourly CO ELV | C6: Monthly 1/2 hourly mean | D6: Highest 1/2 hourly maximum | E6: Daily CO ELV | F6: Monthly daily mean | G6: Highest daily maximum | J6: =+A6 -> 2023 | K6: mg/Nm3 | L6: Monthly 1/2 hourly mean | M6: Monthly 1/2 hourly maximum | N6: Monthly daily mean | O6: Monthly daily maximum
A7: Jan | B7: 100 | C7: N/A | D7: N/A | E7: 50 | F7: 3.59 | G7: 5.37 | J7: A1 | K7: Jan | L7: N/A | M7: N/A | N7: 4.23 | O7: 5.37
A8: Feb | B8: 100 | C8: N/A | D8: N/A | E8: 50 | F8: 3.82 | G8: 6.98 | K8: Feb | L8: N/A | M8: N/A | N8: 4.67 | O8: 6.98
A9: Mar | B9: 100 | C9: N/A | D9: N/A | E9: 50 | F9: 3.48 | G9: 8.77 | K9: Mar | L9: N/A | M9: N/A | N9: 4.48 | O9: 5.74 | Q9: Whole Installation table A5:G18:
A10: Apr | B10: 100 | C10: N/A | D10: N/A | E10: 50 | F10: 3.5 | G10: 7.96 | K10: Apr | L10: N/A | M10: N/A | N10: 4.4 | O10: 7.96 | Q10: Mean: for 1/2 hourly and daily periods calculate mean of values across all operational combustion lines for the month
A11: May | B11: 100 | C11: N/A | D11: N/A | E11: 50 | F11: 3.57 | G11: 5.78 | K11: May | L11: N/A | M11: N/A | N11: 4.06 | O11: 5.78
A12: Jun | B12: 100 | C12: N/A | D12: N/A | E12: 50 | F12: 3.66 | G12: 6.47 | K12: Jun | L12: N/A | M12: N/A | N12: 3.97 | O12: 6.47
A13: Jul | B13: 100 | C13: N/A | D13: N/A | E13: 50 | F13: 3.26 | G13: 5.15 | K13: Jul | L13: N/A | M13: N/A | N13: 3.68 | O13: 5.15 | Q13: Maximum: for 1/2 hourly and daily periods use the highest value across all operational combustion lines for the month
A14: Aug | B14: 100 | C14: N/A | D14: N/A | E14: 50 | F14: 3.19 | G14: 5.79 | K14: Aug | L14: N/A | M14: N/A | N14: 3.97 | O14: 5.7
A15: Sep | B15: 100 | C15: N/A | D15: N/A | E15: 50 | F15: 3 | G15: 4.52 | K15: Sep | L15: N/A | M15: N/A | N15: 3.64 | O15: 4.52
A16: Oct | B16: 100 | C16: N/A | D16: N/A | E16: 50 | F16: 3.18 | G16: 4.84 | K16: Oct | L16: N/A | M16: N/A | N16: 3.56 | O16: 4.84
A17: Nov | B17: 100 | C17: N/A | D17: N/A | E17: 50 | F17: 3.39 | G17: 5.96 | K17: Nov | L17: N/A | M17: N/A | N17: 3.63 | O17: 5.22
A18: Dec | B18: 100 | C18: N/A | D18: N/A | E18: 50 | F18: 3.52 | G18: 6.28 | K18: Dec | L18: N/A | M18: N/A | N18: 3.56 | O18: 5.72
K19: Annual | L19: =AVERAGE(L7:L18) ->  | M19: =MAX(M7:M18) -> 0 | N19: =AVERAGE(N7:N18) -> 3.9875 | O19: =MAX(O7:O18) -> 7.96
J21: =+A6 -> 2023 | K21: mg/Nm3 | L21: Monthly 1/2 hourly mean | M21: Monthly 1/2 hourly maximum | N21: Monthly daily mean | O21: Monthly daily maximum
J22: A2 | K22: Jan | L22: N/A | M22: N/A | N22: 2.95 | O22: 3.62
K23: Feb | L23: N/A | M23: N/A | N23: 3.12 | O23: 4.71
K24: Mar | L24: N/A | M24: N/A | N24: 3.13 | O24: 8.77
K25: Apr | L25: N/A | M25: N/A | N25: 2.69 | O25: 3.39
K26: May | L26: N/A | M26: N/A | N26: 3.13 | O26: 5.12
K27: Jun | L27: N/A | M27: N/A | N27: 3.25 | O27: 4.75
K28: Jul | L28: N/A | M28: N/A | N28: 2.78 | O28: 4.56
K29: Aug | L29: N/A | M29: N/A | N29: 2.6 | O29: 5.79
K30: Sep | L30: N/A | M30: N/A | N30: 2.64 | O30: 4.52
K31: Oct | L31: N/A | M31: N/A | N31: 2.76 | O31: 3.71
K32: Nov | L32: N/A | M32: N/A | N32: 3.17 | O32: 5.96
K33: Dec | L33: N/A | M33: N/A | N33: 3.48 | O33: 6.28
K34: Annual | L34: =AVERAGE(L22:L33) ->  | M34: =MAX(M22:M33) -> 0 | N34: =AVERAGE(N22:N33) -> 2.975 | O34: =MAX(O22:O33) -> 8.77
J36: =+A6 -> 2023 | K36: mg/Nm3 | L36: Monthly 1/2 hourly mean | M36: Monthly 1/2 hourly maximum | N36: Monthly daily mean | O36: Monthly daily maximum
J37: A3 | K37: Jan
K38: Feb
K39: Mar
K40: Apr
K41: May
K42: Jun
K43: Jul
K44: Aug
K45: Sep
K46: Oct
K47: Nov
A48: Comments : | K48: Dec
A49: K3 facility operates 2 lines (2 boilers and 2 emission points) with 1 common turbine. *CO permit complince at this facility is based on 95%ile 10-min avgerage not half hourly averages. | K49: Annual | L49: =AVERAGE(L37:L48) ->  | M49: =MAX(M37:M48) -> 0 | N49: =AVERAGE(N37:N48) ->  | O49: =MAX(O37:O48) -> 0
J51: =+A6 -> 2023 | K51: mg/Nm3 | L51: Monthly 1/2 hourly mean | M51: Monthly 1/2 hourly maximum | N51: Monthly daily mean | O51: Monthly daily maximum
J52: A4 | K52: Jan
K53: Feb
K54: Mar
K55: Apr
K56: May
K57: Jun
K58: Jul
K59: Aug
K60: Sep
K61: Oct
K62: Nov
K63: Dec
K64: Annual | L64: =AVERAGE(L52:L63) ->  | M64: =MAX(M52:M63) -> 0 | N64: =AVERAGE(N52:N63) ->  | O64: =MAX(O52:O63) -> 0
J66: =+A6 -> 2023 | K66: mg/Nm3 | L66: Monthly 1/2 hourly mean | M66: Monthly 1/2 hourly maximum | N66: Monthly daily mean | O66: Monthly daily maximum
J67: A5 | K67: Jan
K68: Feb
K69: Mar
K70: Apr
K71: May
K72: Jun
K73: Jul
K74: Aug
K75: Sep
K76: Oct
K77: Nov
K78: Dec
K79: Annual | L79: =AVERAGE(L67:L78) ->  | M79: =MAX(M67:M78) -> 0 | N79: =AVERAGE(N67:N78) ->  | O79: =MAX(O67:O78) -> 0

Sheet CO 95% 10 min
A1: =+'Cover Page'!$B$29 -> Annual Performance Report 2023 | E1: =+'Cover Page'!$B$33 -> Kemsley Generating Station
A3: Monitoring of Carbon Monoxide (10-minute avg) | E3: Whole Installation | H3: See Notes in Cell S3 | J3: =+A3 -> Monitoring of Carbon Monoxide (10-minute avg) | O3: Per Combustion Line | Q3: Notes: | S3: Notes:
S4: User to add logic to complete Whole installation, Table A5:H18. From the data in Per Combustion Line, Table K6:Q79, subject to No. of lines installed
A5: mg/Nm3 | B5: 10-minute Reference Periods | F5: Daily Reference Periods
A6: =+'Cover Page'!C39 -> 2023 | B6: 95%ile 10-min avg CO ELV | C6: 95%ile 10-min avg maximum | D6: Monthly CO 10-min avg mean | E6: 10-min avg maximum | F6: Daily CO ELV | G6: Monthly daily mean | H6: Highest daily maximum | K6: =+A6 -> 2023 | L6: mg/Nm3 | M6: 95%ile 10-min avg maximum | N6: Monthly CO 10-min avg mean | O6: 10-min avg maximum | P6: Monthly daily mean | Q6: Monthly daily maximum
A7: Jan | B7: 150 | C7: 10.34 | D7: 3.58 | E7: 157.4 | F7: 50 | G7: 3.58 | H7: 5.37 | K7: A1 | L7: Jan | M7: 10.34 | N7: 4.23 | O7: 157.4 | P7: 4.23 | Q7: 5.37
A8: Feb | B8: =+B7 -> 150 | C8: 15.5 | D8: 3.84 | E8: 307.7 | F8: 50 | G8: 3.82 | H8: 6.98 | L8: Feb | M8: 15.5 | N8: 4.67 | O8: 307.7 | P8: 4.67 | Q8: 6.98
A9: Mar | B9: =+B8 -> 150 | C9: 14.82 | D9: 3.67 | E9: 612.06 | F9: 50 | G9: 3.47 | H9: 8.77 | L9: Mar | M9: 14.82 | N9: 5.13 | O9: 612.06 | P9: 4.48 | Q9: 5.74 | S9: Whole Installation table A5:H18:
A10: Apr | B10: 150 | C10: 39.16 | D10: 3.52 | E10: 479.44 | F10: 50 | G10: 3.5 | H10: 7.96 | L10: Apr | M10: 39.16 | N10: 4.43 | O10: 479.44 | P10: 4.4 | Q10: 7.96 | S10: Mean: for 10-min and daily periods use average of all operational combustion lines.
A11: May | B11: 150 | C11: 15.59 | D11: 3.57 | E11: 264.93 | F11: 50 | G11: 3.58 | H11: 5.79 | L11: May | M11: 15.59 | N11: 4.05 | O11: 264.93 | P11: 4.06 | Q11: 5.79
A12: Jun | B12: 150 | C12: 7.89 | D12: 3.65 | E12: 312.59 | F12: 50 | G12: 3.67 | H12: 6.47 | L12: Jun | M12: 7.89 | N12: 3.98 | O12: 266.74 | P12: 3.98 | Q12: 6.47
A13: Jul | B13: 150 | C13: 14.07 | D13: 3.29 | E13: 205.65 | F13: 50 | G13: 3.26 | H13: 5.15 | L13: Jul | M13: 14.07 | N13: 3.73 | O13: 205.65 | P13: 3.68 | Q13: 5.15 | S13: Maximum: for 10-min and daily periods use the highest of all operational combustion lines in any month.
A14: Aug | B14: 150 | C14: 9.95 | D14: 3.21 | E14: 567.21 | F14: 50 | G14: 3.2 | H14: 5.79 | L14: Aug | M14: 9.95 | N14: 3.95 | O14: 345.06 | P14: 3.97 | Q14: 5.7
A15: Sep | B15: 150 | C15: 25.06 | D15: 3.05 | E15: 170.07 | F15: 50 | G15: 3 | H15: 4.69 | L15: Sep | M15: 8.71 | N15: 3.63 | O15: 170.07 | P15: 3.65 | Q15: 4.69
A16: Oct | B16: 150 | C16: 10.51 | D16: 3.22 | E16: 235.66 | F16: 50 | G16: 3.18 | H16: 4.81 | L16: Oct | M16: 10.51 | N16: 3.61 | O16: 235.66 | P16: 3.56 | Q16: 4.81
A17: Nov | B17: 150 | C17: 12.03 | D17: 3.4 | E17: 252.71 | F17: 50 | G17: 3.39 | H17: 5.94 | L17: Nov | M17: 6.67 | N17: 3.66 | O17: 252.71 | P17: 3.63 | Q17: 5.22
A18: Dec | B18: 150 | C18: 21.28 | D18: 3.5 | E18: 237.43 | F18: 50 | G18: 3.52 | H18: 6.28 | L18: Dec | M18: 18.15 | N18: 3.55 | O18: 187.41 | P18: 3.56 | Q18: 5.72
L19: Annual | M19: =AVERAGE(M7:M18) -> 14.28 | O19: =MAX(O7:O18) -> 612.06 | P19: =AVERAGE(P7:P18) -> 3.989166667 | Q19: =MAX(Q7:Q18) -> 7.96
K21: =+A6 -> 2023 | L21: mg/Nm3 | M21: 95%ile 10-min avg maximum | N21: Monthly CO 10-min avg mean | O21: 10-min avg maximum | P21: Monthly daily mean | Q21: Monthly daily maximum
K22: A2 | L22: Jan | M22: 8.5 | N22: 2.94 | O22: 116.17 | P22: 2.94 | Q22: 3.62
L23: Feb | M23: 6.1 | N23: 3.12 | O23: 303.43 | P23: 3.12 | Q23: 4.71
L24: Mar | M24: 6.53 | N24: 3.11 | O24: 431.97 | P24: 3.12 | Q24: 8.77
L25: Apr | M25: 5.41 | N25: 2.69 | O25: 81.74 | P25: 2.69 | Q25: 3.39
L26: May | M26: 10.32 | N26: 3.12 | O26: 179.63 | P26: 3.13 | Q26: 5.12
L27: Jun | M27: 6.59 | N27: 3.24 | O27: 312.59 | P27: 3.25 | Q27: 4.75
L28: Jul | M28: 9.95 | N28: 2.8 | O28: 117.75 | P28: 2.78 | Q28: 4.56
L29: Aug | M29: 6.88 | N29: 2.6 | O29: 567.21 | P29: 2.6 | Q29: 5.79
L30: Sep | M30: 25.06 | N30: 2.73 | O30: 147.15 | P30: 2.63 | Q30: 4.52
L31: Oct | M31: 9.15 | N31: 2.77 | O31: 196.57 | P31: 2.76 | Q31: 3.71
L32: Nov | M32: 12.03 | N32: 3.16 | O32: 189.99 | P32: 3.18 | Q32: 5.94
L33: Dec | M33: 21.28 | N33: 3.45 | O33: 237.43 | P33: 3.48 | Q33: 6.28
L34: Annual | M34: =AVERAGE(M22:M33) -> 10.65 | O34: =MAX(O22:O33) -> 567.21 | P34: =AVERAGE(P22:P33) -> 2.973333333 | Q34: =MAX(Q22:Q33) -> 8.77
K36: =+A6 -> 2023 | L36: mg/Nm3 | M36: 95%ile 10-min avg maximum | N36: Monthly CO 10-min avg mean | O36: 10-min avg maximum | P36: Monthly daily mean | Q36: Monthly daily maximum
K37: A3 | L37: Jan
L38: Feb
L39: Mar
L40: Apr
L41: May
L42: Jun
L43: Jul
L44: Aug
L45: Sep
L46: Oct
L47: Nov
A48: Comments : | L48: Dec
A49: K3 facility operates 2 lines (2 boilers and 2 emission points) with 1 common turbine. Environment Agency explanatory note: The 10-minute average ELV is based on the “95th percentile”. In this case this means that 95% of the 10 minute averages in the relevant 24-hour period (i.e. 137) must be below 150 mg/Nm3, and 5% (i.e. 7) are allowed to be any value above 150 mg/Nm3. Whilst we expect operators to minimise CO emissions at all times, it is perfectly acceptable for the value of the maximum 10-minute average to be above 150 mg/Nm3, provided the 95th percentile ELV has been met for that period. | L49: Annual | M49: =AVERAGE(M37:M48) ->  | O49: =MAX(O37:O48) -> 0 | P49: =AVERAGE(P37:P48) ->  | Q49: =MAX(Q37:Q48) -> 0
K51: =+A6 -> 2023 | L51: mg/Nm3 | M51: 95%ile 10-min avg maximum | N51: Monthly CO 10-min avg mean | O51: 10-min avg maximum | P51: Monthly daily mean | Q51: Monthly daily maximum
K52: A4 | L52: Jan
L53: Feb
L54: Mar
L55: Apr
L56: May
L57: Jun
L58: Jul
L59: Aug
L60: Sep
L61: Oct
L62: Nov
L63: Dec
L64: Annual | M64: =AVERAGE(M52:M63) ->  | O64: =MAX(O52:O63) -> 0 | P64: =AVERAGE(P52:P63) ->  | Q64: =MAX(Q52:Q63) -> 0
K66: =+A6 -> 2023 | L66: mg/Nm3 | M66: 95%ile 10-min avg maximum | N66: Monthly CO 10-min avg mean | O66: 10-min avg maximum | P66: Monthly daily mean | Q66: Monthly daily maximum
K67: A5 | L67: Jan
L68: Feb
L69: Mar
L70: Apr
L71: May
L72: Jun
L73: Jul
L74: Aug
L75: Sep
L76: Oct
L77: Nov
L78: Dec
L79: Annual | M79: =AVERAGE(M67:M78) ->  | O79: =MAX(O67:O78) -> 0 | P79: =AVERAGE(P67:P78) ->  | Q79: =MAX(Q67:Q78) -> 0

Sheet NH3
A1: =+'Cover Page'!$B$29 -> Annual Performance Report 2023 | E1: =+'Cover Page'!$B$33 -> Kemsley Generating Station
A3: Monitoring of Ammnonia emissions | D3: Whole Installation | G3: See Notes in Cell Q3 | J3: =+A3 -> Monitoring of Ammnonia emissions | N3: Per Combustion Line | Q3: Notes:
Q4: User to add logic to complete Whole installation, Table A5:G18. From the data in Per Combustion Line, Table J6:O79, subject to No. of lines installed
A5: mg/Nm3 | B5: 1/2 Hourly Reference Periods | E5: Daily Reference Periods
A6: =+'Cover Page'!C39 -> 2023 | B6: *1/2 hourly NH3 ELV | C6: Monthly 1/2 hourly mean | D6: Highest 1/2 hourly maximum | E6: Daily NH3 ELV | F6: Monthly daily mean | G6: Highest daily maximum | J6: =+A6 -> 2023 | K6: mg/Nm3 | L6: Monthly 1/2 hourly mean | M6: Monthly 1/2 hourly maximum | N6: Monthly daily mean | O6: Monthly daily maximum
A7: Jan | B7: 0 | C7: 0.28 | D7: 4.23 | E7: 10 | F7: 0.28 | G7: 0.78 | J7: A1 | K7: Jan | L7: 0.52 | M7: 4.23 | N7: 0.52 | O7: 0.78
A8: Feb | B8: 0 | C8: 0.22 | D8: 1.6 | E8: 10 | F8: 0.22 | G8: 0.77 | K8: Feb | L8: 0.41 | M8: 1.6 | N8: 0.41 | O8: 0.77
A9: Mar | B9: 0 | C9: 0.27 | D9: 3.08 | E9: 10 | F9: 0.23 | G9: 0.87 | K9: Mar | L9: 0.49 | M9: 2.56 | N9: 0.43 | O9: 0.87 | Q9: Whole Installation table A5:G18:
A10: Apr | B10: 0 | C10: 0.14 | D10: 6.68 | E10: 10 | F10: 0.13 | G10: 0.51 | K10: Apr | L10: 0.14 | M10: 6.68 | N10: 0.11 | O10: 0.51 | Q10: Mean: for 1/2 hourly and daily periods calculate mean of values across all operational combustion lines for the month
A11: May | B11: 0 | C11: 0.12 | D11: 3.15 | E11: 10 | F11: 0.11 | G11: 0.92 | K11: May | L11: 0.16 | M11: 3.15 | N11: 0.15 | O11: 0.92
A12: Jun | B12: 0 | C12: 0.43 | D12: 4.49 | E12: 10 | F12: 0.44 | G12: 1.21 | K12: Jun | L12: 0.58 | M12: 4.49 | N12: 0.58 | O12: 1.21
A13: Jul | B13: 0 | C13: 0.27 | D13: 3.38 | E13: 10 | F13: 0.26 | G13: 0.6 | K13: Jul | L13: 0.32 | M13: 1.61 | N13: 0.31 | O13: 0.6 | Q13: Maximum: for 1/2 hourly and daily periods use the highest value across all operational combustion lines for the month
A14: Aug | B14: 0 | C14: 0.42 | D14: 2.92 | E14: 10 | F14: 0.41 | G14: 1.16 | K14: Aug | L14: 0.68 | M14: 2.92 | N14: 0.67 | O14: 1.16
A15: Sep | B15: 0 | C15: 0.25 | D15: 2.62 | E15: 10 | F15: 0.26 | G15: 0.62 | K15: Sep | L15: 0.27 | M15: 0.77 | N15: 0.27 | O15: 0.32
A16: Oct | B16: 0 | C16: 1.01 | D16: 5.42 | E16: 10 | F16: 0.99 | G16: 2.92 | K16: Oct | L16: 1.64 | M16: 5.42 | N16: 1.64 | O16: 2.92
A17: Nov | B17: 0 | C17: 1.16 | D17: 12.77 | E17: 10 | F17: 1.11 | G17: 5.34 | K17: Nov | L17: 2.18 | M17: 12.77 | N17: 2.13 | O17: 5.34
A18: Dec | B18: 0 | C18: 0.34 | D18: 2.27 | E18: 10 | F18: 0.33 | G18: 0.86 | K18: Dec | L18: 0.6 | M18: 2.27 | N18: 0.59 | O18: 0.86
K19: Annual | L19: =AVERAGE(L7:L18) -> 0.6658333333 | M19: =MAX(M7:M18) -> 12.77 | N19: =AVERAGE(N7:N18) -> 0.6508333333 | O19: =MAX(O7:O18) -> 5.34
J21: =+A6 -> 2023 | K21: mg/Nm3 | L21: Monthly 1/2 hourly mean | M21: Monthly 1/2 hourly maximum | N21: Monthly daily mean | O21: Monthly daily maximum
J22: A2 | K22: Jan | L22: 0.04 | M22: 0.43 | N22: 0.04 | O22: 0.24
K23: Feb | L23: 0.06 | M23: 0.79 | N23: 0.06 | O23: 0.13
K24: Mar | L24: 0.19 | M24: 3.08 | N24: 0.17 | O24: 0.38
K25: Apr | L25: 0.15 | M25: 3.98 | N25: 0.15 | O25: 0.37
K26: May | L26: 0.08 | M26: 0.7 | N26: 0.08 | O26: 0.2
K27: Jun | L27: 0.26 | M27: 0.83 | N27: 0.25 | O27: 0.45
K28: Jul | L28: 0.22 | M28: 3.38 | N28: 0.2 | O28: 0.38
K29: Aug | L29: 0.21 | M29: 0.66 | N29: 0.21 | O29: 0.32
K30: Sep | L30: 0.25 | M30: 2.62 | N30: 0.25 | O30: 0.62
K31: Oct | L31: 0.28 | M31: 1.5 | N31: 0.27 | O31: 0.73
K32: Nov | L32: 0.21 | M32: 2.34 | N32: 0.21 | O32: 0.66
K33: Dec | L33: 0.07 | M33: 1.14 | N33: 0.06 | O33: 0.16
K34: Annual | L34: =AVERAGE(L22:L33) -> 0.1683333333 | M34: =MAX(M22:M33) -> 3.98 | N34: =AVERAGE(N22:N33) -> 0.1625 | O34: =MAX(O22:O33) -> 0.73
J36: =+A6 -> 2023 | K36: mg/Nm3 | L36: Monthly 1/2 hourly mean | M36: Monthly 1/2 hourly maximum | N36: Monthly daily mean | O36: Monthly daily maximum
J37: A3 | K37: Jan
K38: Feb
K39: Mar
K40: Apr
K41: May
K42: Jun
K43: Jul
K44: Aug
K45: Sep
K46: Oct
K47: Nov
A48: Comments : | K48: Dec
A49: K3 facility operates 2 lines (2 boilers and 2 emission points) with 1 common turbine. *An indicated ELV value of zero in the table above means that no ammonia limit is set in the permit; not that the ELV is 0. | K49: Annual | L49: =AVERAGE(L37:L48) ->  | M49: =MAX(M37:M48) -> 0 | N49: =AVERAGE(N37:N48) ->  | O49: =MAX(O37:O48) -> 0
J51: =+A6 -> 2023 | K51: mg/Nm3 | L51: Monthly 1/2 hourly mean | M51: Monthly 1/2 hourly maximum | N51: Monthly daily mean | O51: Monthly daily maximum
J52: A4 | K52: Jan
K53: Feb
K54: Mar
K55: Apr
K56: May
K57: Jun
K58: Jul
K59: Aug
K60: Sep
K61: Oct
K62: Nov
K63: Dec
K64: Annual | L64: =AVERAGE(L52:L63) ->  | M64: =MAX(M52:M63) -> 0 | N64: =AVERAGE(N52:N63) ->  | O64: =MAX(O52:O63) -> 0
J66: =+A6 -> 2023 | K66: mg/Nm3 | L66: Monthly 1/2 hourly mean | M66: Monthly 1/2 hourly maximum | N66: Monthly daily mean | O66: Monthly daily maximum
J67: A5 | K67: Jan
K68: Feb
K69: Mar
K70: Apr
K71: May
K72: Jun
K73: Jul
K74: Aug
K75: Sep
K76: Oct
K77: Nov
K78: Dec
K79: Annual | L79: =AVERAGE(L67:L78) ->  | M79: =MAX(M67:M78) -> 0 | N79: =AVERAGE(N67:N78) ->  | O79: =MAX(O67:O78) -> 0
